Workbook

Sheet 1. Info
AC1: =IF('3. Data_Input_Sheet'!M12=0, "", '3. Data_Input_Sheet'!M12) -> Application Update
P11: Version | Q11: 4
F16: Utility Name | G16: Oshawa PUC Networks Inc.
F18: Service Territory | G18: Oshawa
F20: Assigned EB Number | G20: EB-2014-0101 | AA20: Company Name
Z21: 1 | AA21: Algoma Power Inc.
F22: Name and Title | G22: David Savage, Corporate Controller | Z22: 2 | AA22: Atikokan Hydro Inc.
Z23: 3 | AA23: Attawapiskat Power Corporation
F24: Phone Number | G24: 905-743 5219 | Z24: 4 | AA24: Bluewater Power Distribution Corp.
Z25: 5 | AA25: Brant County Power
F26: Email Address | G26: dsavage@opuc.on.ca | Z26: 6 | AA26: Brantford Power Inc.
Z27: 7 | AA27: Burlington Hydro Inc.
Z28: 8 | AA28: Cambridge and North Dumfries Hydro
Z29: 9 | AA29: Canadian Niagara Power Inc. – Eastern Ontario Power/Fort Erie/Port Colborne
Z30: 10 | AA30: Centre Wellington Hydro Ltd.
Z31: 11 | AA31: Chapleau Public Utilities Corporation
Z32: 12 | AA32: COLLUS Power Corp.
Z33: 13 | AA33: Cooperative Hydro Embrun Inc.
Z34: 14 | AA34: E.L.K. Energy Inc.
Z35: 15 | AA35: Enersource Hydro Mississauga Inc.
Z36: 16 | AA36: Entegrus Powerlines Inc.
Z37: 17 | AA37: ENWIN Utilities Ltd.
Z38: 18 | AA38: Erie Thames Powerlines Corp.
Z39: 19 | AA39: Espanola Regional Hydro Distribution Corporation
Z40: 20 | AA40: Essex Powerlines Corporation
Z41: 21 | AA41: Festival Hydro Inc.
Z42: 22 | AA42: Fort Albany Power Corporation
Z43: 23 | AA43: Fort Frances Power Corporation
Z44: 24 | AA44: Greater Sudbury Hydro Inc.
Z45: 25 | AA45: Grimsby Power Inc.
Z46: 26 | AA46: Guelph Hydro Electric Systems Inc.
Z47: 27 | AA47: Haldimand County Hydro Inc.
Z48: 28 | AA48: Halton Hills Hydro Inc.
Z49: 29 | AA49: Hearst Power Distribution Co. Ltd.
Z50: 30 | AA50: Horizon Utilities Corporation
Z51: 31 | AA51: Hydro 2000 Inc.
Z52: 32 | AA52: Hydro Hawkesbury Inc.
Z53: 33 | AA53: Hydro One Brampton Networks Inc.
Z54: 34 | AA54: Hydro One Networks Inc.
Z55: 35 | AA55: Hydro One Remote Communities Inc.
Z56: 36 | AA56: Hydro Ottawa Limited
Z57: 37 | AA57: Innisfil Hydro Dist. Systems Limited
Z58: 38 | AA58: Kashechewan Power Corporation
Z59: 39 | AA59: Kenora Hydro Electric Corporation Ltd.
Z60: 40 | AA60: Kingston Hydro Corporation
Z61: 41 | AA61: Kitchener-Wilmot Hydro Inc.
Z62: 42 | AA62: Lakefront Utilities Inc.
Z63: 43 | AA63: Lakeland Power Distribution Ltd.
Z64: 44 | AA64: London Hydro Inc.
Z65: 45 | AA65: Midland Power Utility Corporation
Z66: 46 | AA66: Milton Hydro Distribution Inc.
Z67: 47 | AA67: Newmarket – Tay Power Distribution Ltd.
Z68: 48 | AA68: Niagara Peninsula Energy Inc.
Z69: 49 | AA69: Niagara-on-the-Lake Hydro Inc.
Z70: 50 | AA70: Norfolk Power Distribution Ltd.
Z71: 51 | AA71: North Bay Hydro Distribution Limited
Z72: 52 | AA72: Northern Ontario Wires Inc.
Z73: 53 | AA73: Oakville Hydro Distribution Inc.
Z74: 54 | AA74: Orangeville Hydro Limited
Z75: 55 | AA75: Orillia Power Distribution Corp.
Z76: 56 | AA76: Oshawa PUC Networks Inc.
Z77: 57 | AA77: Ottawa River Power Corporation
Z78: 58 | AA78: Parry Sound Power Corporation
Z79: 59 | AA79: Peterborough Distribution Inc.
Z80: 60 | AA80: PowerStream Inc. - Barrie
Z81: 61 | AA81: PowerStream Inc. - South
Z82: 62 | AA82: PUC Distribution Inc.
Z83: 63 | AA83: Renfrew Hydro Inc.
Z84: 64 | AA84: Rideau St. Lawrence Distribution Inc.
Z85: 65 | AA85: St. Thomas Energy Inc.
Z86: 66 | AA86: Sioux Lookout Hydro Inc.
Z87: 67 | AA87: Thunder Bay Hydro Electricity Distribution Inc.
Z88: 68 | AA88: Tillsonburg Hydro Inc.
Z89: 69 | AA89: Toronto Hydro-Electric System Limited
Z90: 70 | AA90: Veridian Connections Inc.
Z91: 71 | AA91: Wasaga Distribution Inc.
Z92: 72 | AA92: Waterloo North Hydro Inc.
Z93: 73 | AA93: Welland Hydro-Electric System Corp.
Z94: 74 | AA94: Wellington North Power Inc.
Z95: 75 | AA95: West Coast Huron Energy Inc.
Z96: 76 | AA96: Westario Power Inc.
Z97: 77 | AA97: Whitby Hydro Electric Corporation
Z98: 78 | AA98: Woodstock Hydro Services Inc.

Sheet 2. Table of Contents
D11: 1. Info | I11: 6. Taxes_PILs
D13: 2. Table of Contents | I13: 7. Cost_of_Capital
D15: 3. Data_Input_Sheet | I15: 8. Rev_Def_Suff
D17: 4. Rate_Base | I17: 9. Rev_Reqt
D19: 5. Utility Income
A24: Notes:
A25: (1) | B25: Pale green cells represent inputs
A26: (2) | B26: Pale green boxes at the bottom of each page are for additional notes
A27: (3) | B27: Pale yellow cells represent drop-down lists
A28: (4) | B28: Please note that this model uses MACROS. Before starting, please ensure that macros have been enabled.
A29: (5) | B29: Completed versions of the Revenue Requirement Work Form are required to be filed in working Microsoft Excel format.

Sheet 3. Data_Input_Sheet
U1: =CONCATENATE('2. Table of Contents'!$F$6," ",'2. Table of Contents'!$G$6) -> 
B9: Data Input (1)
E12: Initial Application | G12: (2) | I12: =IF(ISBLANK(M12),"","Adjustments") -> Adjustments | M12: Application Update | O12: (6) | Q12: =IF(ISBLANK(M12),"","Adjustments") -> Adjustments | U12: Per Board Decision
B15: 1 | C15: Rate Base
C16: Gross Fixed Assets (average) | E16: 226408.3987 | I16: -8833.5 | M16: =IF(ISBLANK(E16),0,E16+I16) -> 217574.8987 | Q16: =Data!C5-M16 -> -884 | U16: =IF(ISBLANK(E16),"",E16+I16+Q16) -> 216690.8987
C17: Accumulated Depreciation (average) | E17: -98666.09095 | G17: (5) | I17: 286.3920635 | M17: =IF(ISBLANK(E17),0,E17+I17) -> -98379.69888 | Q17: =Data!C6-M17 -> 66 | U17: =IF(ISBLANK(E17),"",E17+I17+Q17) -> -98313.69888
C18: Allowance for Working Capital:
C19: Controllable Expenses | E19: 13307.4415 | I19: 0 | M19: =IF(ISBLANK(E19),0,E19+I19) -> 13307.4415 | Q19: =Data!C8-M19 -> 0 | U19: =IF(ISBLANK(E19),"",E19+I19+Q19) -> 13307.4415
C20: Cost of Power | E20: 124411.6339 | I20: -9671.29616 | M20: =IF(ISBLANK(E20),0,E20+I20) -> 114740.3377 | Q20: =Data!C9-M20 -> 14622.66432 | U20: =IF(ISBLANK(E20),"",E20+I20+Q20) -> 129363.002
C21: Working Capital Rate (%) | E21: 0.0937 | G21: (9) | M21: 0.0937 | O21: (9) | U21: =Data!C10 -> 0.0937 | W21: (9)
B23: 2 | C23: Utility Income
C24: Operating Revenues:
C25: Distribution Revenue at Current Rates | E25: 25563.70587 | I25: =IF(ISBLANK(M25),"",IF(ISBLANK(E25),"",M25-E25)) -> -1572.109563 | M25: 23991.59631 | Q25: =IF(ISBLANK(U25),"",IF(ISBLANK(M25),"",U25-M25)) -> 423.3937332 | U25: =Data!$C14 -> 24414.99004
C26: Distribution Revenue at Proposed Rates | E26: 26406.26111 | I26: =IF(ISBLANK(M26),"",IF(ISBLANK(E26),"",M26-E26)) -> -1432.129745 | M26: 24974.13137 | Q26: =IF(ISBLANK(U26),"",IF(ISBLANK(M26),"",U26-M26)) -> 418.3902887 | U26: =Data!$C15 -> 25392.52165
C27: Other Revenue:
C28: Specific Service Charges | E28: 834.1470499 | I28: =IF(ISBLANK(M28),"",IF(ISBLANK(E28),"",M28-E28)) -> -10.35760373 | M28: 823.7894462 | Q28: =IF(ISBLANK(U28),"",IF(ISBLANK(M28),"",U28-M28)) -> -2.433801766 | U28: =Data!$C17 -> 821.3556444
C29: Late Payment Charges | E29: 315.1903746 | I29: =IF(ISBLANK(M29),"",IF(ISBLANK(E29),"",M29-E29)) -> -4.249633876 | M29: 310.9407408 | Q29: =IF(ISBLANK(U29),"",IF(ISBLANK(M29),"",U29-M29)) -> -0.9985674968 | U29: =Data!$C18 -> 309.9421733
C30: Other Distribution Revenue | E30: 178.6941154 | I30: =IF(ISBLANK(M30),"",IF(ISBLANK(E30),"",M30-E30)) -> -3.171888894 | M30: 175.5222265 | Q30: =IF(ISBLANK(U30),"",IF(ISBLANK(M30),"",U30-M30)) -> -0.7089111058 | U30: =Data!$C19 -> 174.8133154
C31: Other Income and Deductions | E31: 128 | I31: =IF(ISBLANK(M31),"",IF(ISBLANK(E31),"",M31-E31)) -> 0 | M31: 128 | Q31: =IF(ISBLANK(U31),"",IF(ISBLANK(M31),"",U31-M31)) -> 0 | U31: =Data!$C20 -> 128
D33: Total Revenue Offsets | E33: 1456.03154 | G33: (7) | I33: =IF(ISBLANK(M33),"",IF(ISBLANK(E33),"",M33-E33)) -> -17.7791265 | M33: 1438.252413 | Q33: =IF(ISBLANK(U33),"",IF(ISBLANK(M33),"",U33-M33)) -> -4.141280368 | U33: =Data!$C22 -> 1434.111133
C35: Operating Expenses:
C36: OM+A Expenses | E36: 13102.21198 | I36: 0 | M36: =IF(ISBLANK(E36),"",E36+I36) -> 13102.21198 | Q36: =Data!$C25-M36 -> 0 | U36: =IF(ISBLANK(E36),"",E36+I36+Q36) -> 13102.21198
C37: Depreciation/Amortization | E37: 5634.577443 | I37: -219.2563492 | M37: =IF(ISBLANK(E37),"",E37+I37) -> 5415.321093 | Q37: =Data!$C26-M37 -> -22 | U37: =IF(ISBLANK(E37),"",E37+I37+Q37) -> 5393.321093
C38: Property taxes | E38: 172.0104499 | I38: 0 | M38: =IF(ISBLANK(E38),"",E38+I38) -> 172.0104499 | Q38: =Data!$C27-M38 -> 0 | U38: =IF(ISBLANK(E38),"",E38+I38+Q38) -> 172.0104499
C39: Capital taxes | E39: =IF(ISBLANK(E48),"",E48) ->  | M39: =IF(ISBLANK(M48),"",M48) ->  | U39: =IF(ISBLANK(U48),"",U48) -> 
C40: Other expenses | E40: 33.21907091 | I40: 0 | M40: =IF(ISBLANK(E40),"",E40+I40) -> 33.21907091 | Q40: =Data!C29-M40 -> 0 | U40: =IF(ISBLANK(E40),"",E40+I40+Q40) -> 33.21907091
B42: 3 | C42: Taxes/PILs
C43: Taxable Income:
D44: Adjustments required to arrive at taxable income | E44: -3571.093268 | G44: (3) | M44: -3130.677617 | U44: =Data!$C33 -> -3152.677617
C45: Utility Income Taxes and Rates:
C46: Income taxes (not grossed up) | E46: 358.7549281 | M46: 326.3600192 | U46: =Data!$C35 -> 356.3917417
C47: Income taxes (grossed up) | E47: =IF(ISBLANK(E46),"",E46/(1-SUM(E49:E50))) -> 473.9870277 | M47: =IF(ISBLANK(M46),"",M46/(1-SUM(M49:M50))) -> 430.1572092 | U47: =IF(ISBLANK(U46),"",U46/(1-SUM(U49:U50))) -> 470.7884364
C48: Capital Taxes
C49: Federal tax (%) | E49: 0.15 | M49: 0.15 | U49: =Data!$C38 -> 0.15
C50: Provincial tax (%) | E50: 0.09311234894 | M50: 0.09130059396 | U50: =Data!C39 -> 0.09298960188
C51: Income Tax Credits | E51: -30 | M51: -30 | U51: =Data!C40 -> -30
B53: 4 | C53: Capitalization/Cost of Capital
C54: Capital Structure:
C55: Long-term debt Capitalization Ratio (%) | E55: 0.56 | M55: 0.56 | U55: =Data!C44 -> 0.56
C56: Short-term debt Capitalization Ratio (%) | E56: 0.04 | G56: (8) | M56: 0.04 | O56: (8) | U56: =Data!C45 -> 0.04 | W56: (8)
C57: Common Equity Capitalization Ratio (%) | E57: 0.4 | M57: 0.4 | U57: =Data!C46 -> 0.4
C58: Prefered Shares Capitalization Ratio (%) | E58: 0 | M58: 0 | U58: =Data!C47 -> 0
E59: =SUM(E55:E58) -> 1 | M59: =SUM(M55:M58) -> 1 | U59: =SUM(U55:U58) -> 1
E60: =IF(ISBLANK(E57),"",IF(SUM(E55:E58)=100%,"","Capital Structure must total 100%")) ->  | M60: =IF(ISBLANK(M57),"",IF(SUM(M55:M58)=100%,"","Capital Structure must total 100%")) ->  | U60: =IF(ISBLANK(U57),"",IF(SUM(U55:U58)=100%,"","Capital Structure must total 100%")) -> 
C61: Cost of Capital
C62: Long-term debt Cost Rate (%) | E62: 0.04041654502 | M62: 0.03483949259 | U62: =Data!$C51 -> 0.03783769116
C63: Short-term debt Cost Rate (%) | E63: 0.0165 | M63: 0.0176 | U63: =Data!$C52 -> 0.0229
C64: Common Equity Cost Rate (%) | E64: 0.0919 | M64: 0.0878 | U64: =Data!$C53 -> 0.09
C65: Prefered Shares Cost Rate (%) | E65: 0 | M65: 0 | U65: =Data!$C54 -> 0
A68: Notes:
B69: General | C69: Data inputs are required on Sheets 3. Data from Sheet 3 will automatically complete calculations on sheets 4 through 9 (Rate Base through Revenue Requirement). Sheets 4 through 9 do not require any inputs except for notes that the Applicant may wish to enter to support the results. Pale green cells are available on sheets 4 through 9 to enter both footnotes beside key cells and the related text for the notes at the bottom of each sheet.
B70: (1) | C70: All inputs are in dollars ($) except where inputs are individually identified as percentages (%)
B71: (2) | C71: Data in column E is for Application as originally filed. For updated revenue requirement as a result of interrogatory responses, technical or settlement conferences, etc., use colimn M and Adjustments in column I
B72: (3) | C72: Net of addbacks and deductions to arrive at taxable income.
B73: (4) | C73: Average of Gross Fixed Assets at beginning and end of the Test Year
B74: (5) | C74: Average of Accumulated Depreciation at the beginning and end of the Test Year. Enter as a negative amount.
B75: (6) | C75: Select option from drop-down list by clicking on cell M10. This column allows for the application update reflecting the end of discovery or Argument-in-Chief. Also, the outcome of any Settlement Process can be reflected.
B76: (7) | C76: Input total revenue offsets for deriving the base revenue requirement from the service revenue requirement
B77: (8) | C77: 4.0% unless an Applicant has proposed or been approved for another amount.
B78: (9) | C78: Starting with 2013, default Working Capital Allowance factor is 13% (of Cost of Power plus controllable expenses). Alternatively, WCA factor based on lead-lag study or approved WCA factor for another distributor, with supporting rationale.

Sheet 4. Rate_Base
B6: Rate Base and Working Capital
D10: Rate Base
B11: Line No. | D11: Particulars | G11: Initial Application | K11: =IF(ISBLANK('3. Data_Input_Sheet'!M12),"",'3. Data_Input_Sheet'!I12) -> Adjustments | O11: =IF(ISBLANK('3. Data_Input_Sheet'!M12)," ",'3. Data_Input_Sheet'!M12) -> Application Update | S11: =IF(ISBLANK('3. Data_Input_Sheet'!Q12),"",'3. Data_Input_Sheet'!Q12) -> Adjustments | W11: ='3. Data_Input_Sheet'!U12 -> Per Board Decision
B13: 1 | D13: Gross Fixed Assets (average) | E13: (3) | G13: ='3. Data_Input_Sheet'!E16 -> 226408.3987 | K13: ='3. Data_Input_Sheet'!I16 -> -8833.5 | O13: =G13+K13 -> 217574.8987 | S13: ='3. Data_Input_Sheet'!Q16 -> -884 | W13: =G13+K13+S13 -> 216690.8987
B14: 2 | D14: Accumulated Depreciation (average) | E14: (3) | G14: ='3. Data_Input_Sheet'!E17 -> -98666.09095 | K14: ='3. Data_Input_Sheet'!I17 -> 286.3920635 | O14: =G14+K14 -> -98379.69888 | S14: ='3. Data_Input_Sheet'!Q17 -> 66 | W14: =G14+K14+S14 -> -98313.69888
B15: 3 | D15: Net Fixed Assets (average) | E15: (3) | G15: =SUM(G13:G14) -> 127742.3077 | K15: =SUM(K13:K14) -> -8547.107937 | O15: =SUM(O13:O14) -> 119195.1998 | S15: =SUM(S13:S14) -> -818 | W15: =SUM(W13:W14) -> 118377.1998
B17: 4 | D17: Allowance for Working Capital | E17: (1) | G17: =G30 -> 12904.27736 | K17: =K30 -> -906.2004502 | O17: =O30 -> 11998.07691 | S17: =S30 -> 1370.143646 | W17: =W30 -> 13368.22056
D18: Total Rate Base | G18: =G17+G15 -> 140646.5851 | K18: =K17+K15 -> -9453.308387 | O18: =O17+O15 -> 131193.2767 | S18: =S17+S15 -> 552.1436464 | W18: =W15+W17 -> 131745.4203
B19: 5
C20: (1) | D20: Allowance for Working Capital - Derivation
B24: 6 | D24: Controllable Expenses | G24: ='3. Data_Input_Sheet'!E19 -> 13307.4415 | K24: ='3. Data_Input_Sheet'!I19 -> 0 | O24: =G24+K24 -> 13307.4415 | S24: ='3. Data_Input_Sheet'!Q19 -> 0 | W24: =G24+K24+S24 -> 13307.4415
B25: 7 | D25: Cost of Power | G25: ='3. Data_Input_Sheet'!E20 -> 124411.6339 | K25: ='3. Data_Input_Sheet'!I20 -> -9671.29616 | O25: =G25+K25 -> 114740.3377 | S25: ='3. Data_Input_Sheet'!Q20 -> 14622.66432 | W25: =G25+K25+S25 -> 129363.002
B26: 8 | D26: Working Capital Base | G26: =SUM(G24:G25) -> 137719.0754 | K26: =K24+K25 -> -9671.29616 | O26: =SUM(O24:O25) -> 128047.7792 | S26: =S24+S25 -> 14622.66432 | W26: =SUM(W24:W25) -> 142670.4435
B28: 9 | D28: Working Capital Rate % | E28: (2) | G28: ='3. Data_Input_Sheet'!E21 -> 0.0937 | K28: =O28-G28 -> 0 | O28: ='3. Data_Input_Sheet'!M21 -> 0.0937 | S28: =W28-O28 -> 0 | W28: ='3. Data_Input_Sheet'!U21 -> 0.0937
B30: 10 | D30: Working Capital Allowance | G30: =G26*G28 -> 12904.27736 | K30: =O30-G30 -> -906.2004502 | O30: =O26*O28 -> 11998.07691 | S30: =W30-O30 -> 1370.143646 | W30: =W26*W28 -> 13368.22056
B33: Notes
B34: (2) | D34: Some Applicants may have a unique rate as a result of a lead-lag study. The default rate for 2014 cost of service applications is 13%.
B35: (3) | D35: Average of opening and closing balances for the year.

Sheet 5. Utility Income
B11: Utility Income
B13: Line No. | D13: Particulars | F13: Initial Application | J13: =IF(N13="","","Adjustments") -> Adjustments | N13: =IF(ISBLANK('3. Data_Input_Sheet'!M12),"",'3. Data_Input_Sheet'!M12) -> Application Update | R13: =IF(N13="","","Adjustments") -> Adjustments | V13: ='3. Data_Input_Sheet'!U12 -> Per Board Decision
D15: Operating Revenues:
B16: 1 | D16: Distribution Revenue (at Proposed Rates) | F16: ='3. Data_Input_Sheet'!E26 -> 26406.26111 | J16: =N16-F16 -> -1432.129745 | N16: ='3. Data_Input_Sheet'!M26 -> 24974.13137 | R16: =V16-N16 -> 418.3902887 | V16: =IF(ISBLANK('3. Data_Input_Sheet'!U26),'5. Utility Income'!N16,'3. Data_Input_Sheet'!U26) -> 25392.52165
B17: 2 | D17: Other Revenue | E17: (1) | F17: =F48 -> 1456.03154 | J17: =N17-F17 -> -17.7791265 | N17: =N48 -> 1438.252413 | R17: =V17-N17 -> -4.141280368 | V17: =V48 -> 1434.111133
F18: =SUM(F16:F17) -> 27862.29265 | J18: =SUM(J16:J17) -> -1449.908872 | N18: =SUM(N16:N17) -> 26412.38378 | R18: =SUM(R16:R17) -> 414.2490083 | V18: =SUM(V16:V17) -> 26826.63279
B19: 3 | D19: Total Operating Revenues
D21: Operating Expenses:
B22: 4 | D22: OM+A Expenses | F22: ='3. Data_Input_Sheet'!E36 -> 13102.21198 | J22: ='3. Data_Input_Sheet'!I36 -> 0 | N22: ='3. Data_Input_Sheet'!M36 -> 13102.21198 | R22: ='3. Data_Input_Sheet'!Q36 -> 0 | V22: ='3. Data_Input_Sheet'!U36 -> 13102.21198
B23: 5 | D23: Depreciation/Amortization | F23: ='3. Data_Input_Sheet'!E37 -> 5634.577443 | J23: ='3. Data_Input_Sheet'!I37 -> -219.2563492 | N23: ='3. Data_Input_Sheet'!M37 -> 5415.321093 | R23: ='3. Data_Input_Sheet'!Q37 -> -22 | V23: ='3. Data_Input_Sheet'!U37 -> 5393.321093
B24: 6 | D24: Property taxes | F24: ='3. Data_Input_Sheet'!E38 -> 172.0104499 | J24: ='3. Data_Input_Sheet'!I38 -> 0 | N24: ='3. Data_Input_Sheet'!M38 -> 172.0104499 | R24: ='3. Data_Input_Sheet'!Q38 -> 0 | V24: ='3. Data_Input_Sheet'!U38 -> 172.0104499
B25: 7 | D25: Capital taxes | F25: ='6. Taxes_PILs'!G25 -> 0 | J25: =N25-F25 -> 0 | N25: ='6. Taxes_PILs'!K25 -> 0 | R25: =V25-N25 -> 0 | V25: ='6. Taxes_PILs'!O25 -> 0
B26: 8 | D26: Other expense | F26: ='3. Data_Input_Sheet'!E40 -> 33.21907091 | J26: ='3. Data_Input_Sheet'!I40 -> 0 | N26: ='3. Data_Input_Sheet'!M40 -> 33.21907091 | R26: ='3. Data_Input_Sheet'!Q40 -> 0 | V26: ='3. Data_Input_Sheet'!U40 -> 33.21907091
F27: =SUM(F22:F26) -> 18942.01895 | J27: =SUM(J22:J26) -> -219.2563492 | N27: =SUM(N22:N26) -> 18722.7626 | R27: =SUM(R22:R26) -> -22 | V27: =SUM(V22:V26) -> 18700.7626
B28: 9 | D28: Subtotal (lines 4 to 8)
B30: 10 | D30: Deemed Interest Expense | F30: ='7. Cost_of_Capital'!P19 -> 3276.118208 | J30: =N30-F30 -> -624.1621137 | N30: ='7. Cost_of_Capital'!P35 -> 2651.956094 | R30: =V30-N30 -> 260.2905264 | V30: ='7. Cost_of_Capital'!P51 -> 2912.24662
B32: 11 | D32: Total Expenses (lines 9 to 10) | F32: =F27+F30 -> 22218.13715 | J32: =J30+J27 -> -843.418463 | N32: =N30+N27 -> 21374.71869 | R32: =R30+R27 -> 238.2905264 | V32: =V27+V30 -> 21613.00922
B34: 12 | D34: Utility income before income taxes | F34: =F18-(F32) -> 5644.155496 | J34: =J18-(J32) -> -606.4904086 | N34: =N18-(N32) -> 5037.665087 | R34: =R18-(R32) -> 175.9584819 | V34: =V18-(V32) -> 5213.623569
F35: ='6. Taxes_PILs'!G31 -> 473.9870277 | J35: =N35-F35 -> -43.82981851 | N35: ='6. Taxes_PILs'!K31 -> 430.1572092 | R35: =V35-N35 -> 40.63122715 | V35: =IF('6. Taxes_PILs'!O31=0,N35,'6. Taxes_PILs'!O31) -> 470.7884364
B36: 13 | D36: Income taxes (grossed-up)
F37: =F34-F35 -> 5170.168468 | J37: =J34-J35 -> -562.6605901 | N37: =N34-N35 -> 4607.507878 | R37: =R34-R35 -> 135.3272548 | V37: =V34-V35 -> 4742.835132
B38: 14 | D38: Utility net income
B42: Notes
B44: (1) | D44: Specific Service Charges | F44: ='3. Data_Input_Sheet'!E28 -> 834.1470499 | J44: ='3. Data_Input_Sheet'!I28 -> -10.35760373 | N44: ='3. Data_Input_Sheet'!M28 -> 823.7894462 | R44: ='3. Data_Input_Sheet'!Q28 -> -2.433801766 | V44: =IF(ISBLANK('3. Data_Input_Sheet'!U28),N44,'3. Data_Input_Sheet'!U28) -> 821.3556444
D45: Late Payment Charges | F45: ='3. Data_Input_Sheet'!E29 -> 315.1903746 | J45: ='3. Data_Input_Sheet'!I29 -> -4.249633876 | N45: ='3. Data_Input_Sheet'!M29 -> 310.9407408 | R45: ='3. Data_Input_Sheet'!Q29 -> -0.9985674968 | V45: =IF(ISBLANK('3. Data_Input_Sheet'!U29),N45,'3. Data_Input_Sheet'!U29) -> 309.9421733
D46: Other Distribution Revenue | F46: ='3. Data_Input_Sheet'!E30 -> 178.6941154 | J46: ='3. Data_Input_Sheet'!I30 -> -3.171888894 | N46: ='3. Data_Input_Sheet'!M30 -> 175.5222265 | R46: ='3. Data_Input_Sheet'!Q30 -> -0.7089111058 | V46: =IF(ISBLANK('3. Data_Input_Sheet'!U30),N46,'3. Data_Input_Sheet'!U30) -> 174.8133154
D47: Other Income and Deductions | F47: ='3. Data_Input_Sheet'!E31 -> 128 | J47: ='3. Data_Input_Sheet'!I31 -> 0 | N47: ='3. Data_Input_Sheet'!M31 -> 128 | R47: ='3. Data_Input_Sheet'!Q31 -> 0 | V47: =IF(ISBLANK('3. Data_Input_Sheet'!U31),N47,'3. Data_Input_Sheet'!U31) -> 128
F48: =SUM(F44:F47) -> 1456.03154 | J48: =SUM(J44:J47) -> -17.7791265 | N48: =SUM(N44:N47) -> 1438.252413 | R48: =SUM(R44:R47) -> -4.141280368 | V48: =SUM(V44:V47) -> 1434.111133
D49: Total Revenue Offsets

Sheet 6. Taxes_PILs
B9: Taxes/PILs
B12: Line No. | D12: Particulars | G12: Application | K12: =IF(ISBLANK('3. Data_Input_Sheet'!M12),"",'3. Data_Input_Sheet'!M12) -> Application Update | O12: ='3. Data_Input_Sheet'!U12 -> Per Board Decision
D14: Determination of Taxable Income
B16: 1 | D16: Utility net income before taxes | G16: ='7. Cost_of_Capital'!P22 -> 5170.168468 | K16: ='7. Cost_of_Capital'!P38 -> 4607.507878 | O16: ='7. Cost_of_Capital'!P54 -> 4742.835132
B18: 2 | D18: Adjustments required to arrive at taxable utility income | G18: ='3. Data_Input_Sheet'!E44 -> -3571.093268 | K18: ='3. Data_Input_Sheet'!M44 -> -3130.677617 | O18: =IF(ISBLANK('3. Data_Input_Sheet'!U44),G18,'3. Data_Input_Sheet'!U44) -> -3152.677617
B20: 3 | D20: Taxable income | G20: =G16+G18 -> 1599.0752 | K20: =K16+K18 -> 1476.830261 | O20: =O16+O18 -> 1590.157516
D22: Calculation of Utility income Taxes
B24: 4 | D24: Income taxes | G24: ='3. Data_Input_Sheet'!E46 -> 358.7549281 | K24: =IF(ISBLANK('3. Data_Input_Sheet'!M46),'6. Taxes_PILs'!G24,'3. Data_Input_Sheet'!M46) -> 326.3600192 | O24: =IF(ISBLANK('3. Data_Input_Sheet'!U46),'6. Taxes_PILs'!K24,'3. Data_Input_Sheet'!U46) -> 356.3917417
B25: 5 | D25: Capital taxes | G25: ='3. Data_Input_Sheet'!E48 -> 0 | K25: =IF(ISBLANK('3. Data_Input_Sheet'!M48),'6. Taxes_PILs'!G25,'3. Data_Input_Sheet'!M48) -> 0 | O25: =IF(ISBLANK('3. Data_Input_Sheet'!U48),'6. Taxes_PILs'!K25,'3. Data_Input_Sheet'!U48) -> 0
G26: =SUM(G24:G25) -> 358.7549281 | K26: =SUM(K24:K25) -> 326.3600192 | O26: =SUM(O24:O25) -> 356.3917417
B27: 6 | D27: Total taxes
B29: 7 | D29: Gross-up of Income Taxes | G29: =(G24/(1-G41))-G24 -> 115.2320997 | K29: =(K24/(1-K41))-K24 -> 103.7971901 | O29: =(O24/(1-O41))-O24 -> 114.3966947
B31: 8 | D31: Grossed-up Income Taxes | G31: =G24+G29 -> 473.9870277 | K31: =K24+K29 -> 430.1572092 | O31: =O24+O29 -> 470.7884364
B33: 9 | D33: PILs / tax Allowance (Grossed-up Income taxes + Capital taxes) | G33: =G26+G29 -> 473.9870277 | K33: =K29+K26 -> 430.1572092 | O33: =O29+O26 -> 470.7884364
B35: 10 | D35: Other tax Credits | G35: ='3. Data_Input_Sheet'!E51 -> -30 | K35: =IF(ISBLANK('3. Data_Input_Sheet'!M51),G35,'3. Data_Input_Sheet'!M51) -> -30 | O35: =IF(ISBLANK('3. Data_Input_Sheet'!U51),K35,'3. Data_Input_Sheet'!U51) -> -30
D37: Tax Rates
B39: 11 | D39: Federal tax (%) | G39: ='3. Data_Input_Sheet'!E49 -> 0.15 | K39: =IF(ISBLANK('3. Data_Input_Sheet'!M49),G39,'3. Data_Input_Sheet'!M49) -> 0.15 | O39: =IF(ISBLANK('3. Data_Input_Sheet'!U49),K39,'3. Data_Input_Sheet'!U49) -> 0.15
B40: 12 | D40: Provincial tax (%) | G40: ='3. Data_Input_Sheet'!E50 -> 0.09311234894 | K40: =IF(ISBLANK('3. Data_Input_Sheet'!M50),G40,'3. Data_Input_Sheet'!M50) -> 0.09130059396 | O40: =IF(ISBLANK('3. Data_Input_Sheet'!U50),K40,'3. Data_Input_Sheet'!U50) -> 0.09298960188
B41: 13 | D41: Total tax rate (%) | G41: =G39+G40 -> 0.2431123489 | K41: =K39+K40 -> 0.241300594 | O41: =O39+O40 -> 0.2429896019
B44: Notes
D45: Capital Taxes not applicable after July 1, 2010 (i.e. for 2011 and later test years)

Sheet 7. Cost_of_Capital
B5: Capitalization/Cost of Capital
B11: Line No. | D11: Particulars | F11: Capitalization Ratio | L11: Cost Rate | P11: Return
F13: Initial Application
F15: (%) | J15: ($) | L15: (%) | P15: ($)
D16: Debt
B17: 1 | D17: Long-term Debt | F17: ='3. Data_Input_Sheet'!E55 -> 0.56 | J17: =$J$26*F17 -> 78762.08765 | L17: ='3. Data_Input_Sheet'!E62 -> 0.04041654502 | P17: =L17*J17 -> 3183.291461
B18: 2 | D18: Short-term Debt | F18: ='3. Data_Input_Sheet'!E56 -> 0.04 | J18: =$J$26*F18 -> 5625.863403 | L18: ='3. Data_Input_Sheet'!E63 -> 0.0165 | P18: =L18*J18 -> 92.82674616
B19: 3 | D19: Total Debt | F19: =SUM(F17:F18) -> 0.6 | J19: =SUM(J17:J18) -> 84387.95105 | L19: =IF(F19=0,0,SUMPRODUCT(F17:F18,L17:L18)/F19) -> 0.03882210869 | P19: =SUM(P17:P18) -> 3276.118208
D21: Equity
B22: 4 | D22: Common Equity | F22: ='3. Data_Input_Sheet'!E57 -> 0.4 | J22: =$J$26*F22 -> 56258.63403 | L22: ='3. Data_Input_Sheet'!E64 -> 0.0919 | P22: =L22*J22 -> 5170.168468
B23: 5 | D23: Preferred Shares | F23: ='3. Data_Input_Sheet'!E58 -> 0 | J23: =$J$26*F23 -> 0 | L23: ='3. Data_Input_Sheet'!E65 -> 0 | P23: =L23*J23 -> 0
B24: 6 | D24: Total Equity | F24: =SUM(F22:F23) -> 0.4 | J24: =SUM(J22:J23) -> 56258.63403 | L24: =IF(F24=0,0,SUMPRODUCT(F22:F23,L22:L23)/F24) -> 0.0919 | P24: =SUM(P22:P23) -> 5170.168468
B26: 7 | D26: Total | F26: =SUM(F19,F24) -> 1 | J26: ='4. Rate_Base'!G18 -> 140646.5851 | L26: =(L19*F19)+(L24*F24) -> 0.06005326521 | P26: =P19+P24 -> 8446.286675
F29: ='1. Info'!AC1 -> Application Update
F31: (%) | J31: ($) | L31: (%) | P31: ($)
D32: Debt
B33: 1 | D33: Long-term Debt | F33: ='3. Data_Input_Sheet'!M55 -> 0.56 | J33: =$J$42*F33 -> 73468.23495 | L33: ='3. Data_Input_Sheet'!M62 -> 0.03483949259 | P33: =L33*J33 -> 2559.596027
B34: 2 | D34: Short-term Debt | F34: ='3. Data_Input_Sheet'!M56 -> 0.04 | J34: =$J$42*F34 -> 5247.731068 | L34: ='3. Data_Input_Sheet'!M63 -> 0.0176 | P34: =L34*J34 -> 92.3600668
B35: 3 | D35: Total Debt | F35: =SUM(F33:F34) -> 0.6 | J35: =SUM(J33:J34) -> 78715.96602 | L35: =IF(F35=0,0,SUMPRODUCT(F33:F34,L33:L34)/F35) -> 0.03369019308 | P35: =SUM(P33:P34) -> 2651.956094
D37: Equity
B38: 4 | D38: Common Equity | F38: ='3. Data_Input_Sheet'!M57 -> 0.4 | J38: =$J$42*F38 -> 52477.31068 | L38: ='3. Data_Input_Sheet'!M64 -> 0.0878 | P38: =L38*J38 -> 4607.507878
B39: 5 | D39: Preferred Shares | F39: ='3. Data_Input_Sheet'!M58 -> 0 | J39: =$J$42*F39 -> 0 | L39: ='3. Data_Input_Sheet'!M65 -> 0 | P39: =L39*J39 -> 0
B40: 6 | D40: Total Equity | F40: =SUM(F38:F39) -> 0.4 | J40: =SUM(J38:J39) -> 52477.31068 | L40: =IF(F40=0,0,SUMPRODUCT(F38:F39,L38:L39)/F40) -> 0.0878 | P40: =SUM(P38:P39) -> 4607.507878
B42: 7 | D42: Total | F42: =F35+F40 -> 1 | J42: ='4. Rate_Base'!O18 -> 131193.2767 | L42: =(L35*F35)+(L40*F40) -> 0.05533411585 | P42: =P35+P40 -> 7259.463971
F45: Per Board Decision
F47: (%) | J47: ($) | L47: (%) | P47: ($)
D48: Debt
B49: 8 | D49: Long-term Debt | F49: =IF(ISBLANK('3. Data_Input_Sheet'!U55),F33,'3. Data_Input_Sheet'!U55) -> 0.56 | J49: =$J$58*F49 -> 73777.43539 | L49: =IF(ISBLANK('3. Data_Input_Sheet'!U62),L17,'3. Data_Input_Sheet'!U62) -> 0.03783769116 | P49: =L49*J49 -> 2791.567815
B50: 9 | D50: Short-term Debt | F50: =IF(ISBLANK('3. Data_Input_Sheet'!U56),F34,'3. Data_Input_Sheet'!U56) -> 0.04 | J50: =$J$58*F50 -> 5269.816814 | L50: =IF(ISBLANK('3. Data_Input_Sheet'!U63),L18,'3. Data_Input_Sheet'!U63) -> 0.0229 | P50: =L50*J50 -> 120.678805
B51: 10 | D51: Total Debt | F51: =SUM(F49:F50) -> 0.6 | J51: =SUM(J49:J50) -> 79047.25221 | L51: =IF(F51=0,0,SUMPRODUCT(F49:F50,L49:L50)/F51) -> 0.03684184508 | P51: =SUM(P49:P50) -> 2912.24662
D53: Equity
B54: 11 | D54: Common Equity | F54: =IF(ISBLANK('3. Data_Input_Sheet'!U57),F38,'3. Data_Input_Sheet'!U57) -> 0.4 | J54: =$J$58*F54 -> 52698.16814 | L54: =IF(ISBLANK('3. Data_Input_Sheet'!U64),L22,'3. Data_Input_Sheet'!U64) -> 0.09 | P54: =L54*J54 -> 4742.835132
B55: 12 | D55: Preferred Shares | F55: =IF(ISBLANK('3. Data_Input_Sheet'!U58),F39,'3. Data_Input_Sheet'!U58) -> 0 | J55: =$J$58*F55 -> 0 | L55: =IF(ISBLANK('3. Data_Input_Sheet'!U65),L23,'3. Data_Input_Sheet'!U65) -> 0 | P55: =L55*J55 -> 0
B56: 13 | D56: Total Equity | F56: =SUM(F54:F55) -> 0.4 | J56: =SUM(J54:J55) -> 52698.16814 | L56: =IF(F56=0,0,SUMPRODUCT(F54:F55,L54:L55)/F56) -> 0.09 | P56: =SUM(P54:P55) -> 4742.835132
B58: 14 | D58: Total | F58: =F51+F56 -> 1 | J58: ='4. Rate_Base'!W18 -> 131745.4203 | L58: =(L51*F51)+(L56*F56) -> 0.05810510705 | P58: =P51+P56 -> 7655.081753
B61: Notes
B62: (1) | D62: ='3. Data_Input_Sheet'!C71 -> Data in column E is for Application as originally filed. For updated revenue requirement as a result of interrogatory responses, technical or settlement conferences, etc., use colimn M and Adjustments in column I

Sheet 8. Rev_Def_Suff
P1: =CONCATENATE('2. Table of Contents'!$F$6," ",'2. Table of Contents'!$G$6) -> 
B10: Revenue Deficiency/Sufficiency
F13: Initial Application | J13: =IF(ISBLANK('3. Data_Input_Sheet'!M12),"",'3. Data_Input_Sheet'!M12) -> Application Update | N13: ='3. Data_Input_Sheet'!U12 -> Per Board Decision
B15: Line No. | D15: Particulars | F15: At Current Approved Rates | H15: At Proposed Rates | J15: At Current Approved Rates | L15: At Proposed Rates | N15: At Current Approved Rates | P15: At Proposed Rates
B19: 1 | D19: Revenue Deficiency from Below | H19: =F52 -> 842.5552386 | L19: =J52 -> 982.5350564 | P19: =N52 -> 977.5316119
B20: 2 | D20: Distribution Revenue | F20: ='3. Data_Input_Sheet'!E25 -> 25563.70587 | H20: ='3. Data_Input_Sheet'!E26-H19 -> 25563.70587 | J20: =IF(ISBLANK('3. Data_Input_Sheet'!M25),'3. Data_Input_Sheet'!E25,'3. Data_Input_Sheet'!M25) -> 23991.59631 | L20: =IF(ISBLANK('3. Data_Input_Sheet'!M26),'3. Data_Input_Sheet'!E26-L19,'3. Data_Input_Sheet'!M26-L19) -> 23991.59631 | N20: =IF(ISBLANK('3. Data_Input_Sheet'!U25),'3. Data_Input_Sheet'!M25,'3. Data_Input_Sheet'!U25) -> 24414.99004 | P20: =IF(ISBLANK('3. Data_Input_Sheet'!U26),'3. Data_Input_Sheet'!M26-P19,'3. Data_Input_Sheet'!U26-P19) -> 24414.99004
B21: 3 | D21: Other Operating Revenue Offsets - net | F21: ='5. Utility Income'!F48 -> 1456.03154 | H21: ='5. Utility Income'!F48 -> 1456.03154 | J21: ='5. Utility Income'!N48 -> 1438.252413 | L21: =J21 -> 1438.252413 | N21: ='5. Utility Income'!V48 -> 1434.111133 | P21: ='5. Utility Income'!V48 -> 1434.111133
B22: 4 | D22: Total Revenue | F22: =SUM(F20:F21) -> 27019.73741 | H22: =SUM(H19:H21) -> 27862.29265 | J22: =SUM(J20:J21) -> 25429.84872 | L22: =SUM(L19:L21) -> 26412.38378 | N22: =SUM(N20:N21) -> 25849.10117 | P22: =SUM(P19:P21) -> 26826.63279
B24: 5 | D24: Operating Expenses | F24: ='5. Utility Income'!F27 -> 18942.01895 | H24: ='5. Utility Income'!F27 -> 18942.01895 | J24: ='5. Utility Income'!N27 -> 18722.7626 | L24: ='5. Utility Income'!N27 -> 18722.7626 | N24: ='5. Utility Income'!V27 -> 18700.7626 | P24: ='5. Utility Income'!V27 -> 18700.7626
B25: 6 | D25: Deemed Interest Expense | F25: ='5. Utility Income'!F30 -> 3276.118208 | H25: ='5. Utility Income'!F30 -> 3276.118208 | J25: ='5. Utility Income'!N30 -> 2651.956094 | L25: ='5. Utility Income'!N30 -> 2651.956094 | N25: ='5. Utility Income'!V30 -> 2912.24662 | P25: ='5. Utility Income'!V30 -> 2912.24662
B26: 8 | D26: Total Cost and Expenses | F26: =SUM(F24:F25) -> 22218.13715 | H26: =SUM(H24:H25) -> 22218.13715 | J26: =SUM(J24:J25) -> 21374.71869 | L26: =SUM(L24:L25) -> 21374.71869 | N26: =SUM(N24:N25) -> 21613.00922 | P26: =SUM(P24:P25) -> 21613.00922
B28: 9 | D28: Utility Income Before Income Taxes | F28: =F22-F26 -> 4801.600257 | H28: =H22-H26 -> 5644.155496 | J28: =J22-J26 -> 4055.130031 | L28: =L22-L26 -> 5037.665087 | N28: =N22-N26 -> 4236.091957 | P28: =P22-P26 -> 5213.623569
B30: 10 | D30: Tax Adjustments to Accounting Income per 2013 PILs model | F30: ='3. Data_Input_Sheet'!E44 -> -3571.093268 | H30: ='3. Data_Input_Sheet'!E44 -> -3571.093268 | J30: =IF(ISBLANK('3. Data_Input_Sheet'!M44),'3. Data_Input_Sheet'!E44,'3. Data_Input_Sheet'!M44) -> -3130.677617 | L30: =IF(ISBLANK('3. Data_Input_Sheet'!M44),'3. Data_Input_Sheet'!E44,'3. Data_Input_Sheet'!M44) -> -3130.677617 | N30: =IF(ISBLANK('3. Data_Input_Sheet'!U44),'3. Data_Input_Sheet'!M44,'3. Data_Input_Sheet'!U44) -> -3152.677617 | P30: =IF(ISBLANK('3. Data_Input_Sheet'!U44),'3. Data_Input_Sheet'!M44,'3. Data_Input_Sheet'!U44) -> -3152.677617
B31: 11 | D31: Taxable Income | F31: =SUM(F28:F30) -> 1230.506989 | H31: =SUM(H28:H30) -> 2073.062228 | J31: =SUM(J28+J30) -> 924.4524138 | L31: =L28+L30 -> 1906.98747 | N31: =SUM(N28+N30) -> 1083.41434 | P31: =P28+P30 -> 2060.945952
B33: 12 | D33: Income Tax Rate | F33: ='6. Taxes_PILs'!G41 -> 0.2431123489 | H33: ='6. Taxes_PILs'!G41 -> 0.2431123489 | J33: ='6. Taxes_PILs'!K41 -> 0.241300594 | L33: ='6. Taxes_PILs'!K41 -> 0.241300594 | N33: ='6. Taxes_PILs'!O41 -> 0.2429896019 | P33: ='6. Taxes_PILs'!O41 -> 0.2429896019
B34: 13 | D34: Income Tax on Taxable Income | F34: =F31*F33 -> 299.1514446 | H34: =H31*H33 -> 503.9870277 | J34: =J31*J33 -> 223.0709165 | L34: =L31*L33 -> 460.1572092 | N34: =N31*N33 -> 263.2584192 | P34: =P31*P33 -> 500.7884364
B35: 14 | D35: Income Tax Credits | F35: ='3. Data_Input_Sheet'!E51 -> -30 | H35: ='3. Data_Input_Sheet'!E51 -> -30 | J35: =IF(ISBLANK('3. Data_Input_Sheet'!M51),'3. Data_Input_Sheet'!E51,'3. Data_Input_Sheet'!M51) -> -30 | L35: =IF(ISBLANK('3. Data_Input_Sheet'!M51),'3. Data_Input_Sheet'!E51,'3. Data_Input_Sheet'!M51) -> -30 | N35: =IF(ISBLANK('3. Data_Input_Sheet'!U51),'3. Data_Input_Sheet'!M51,'3. Data_Input_Sheet'!U51) -> -30 | P35: =IF(ISBLANK('3. Data_Input_Sheet'!U51),'3. Data_Input_Sheet'!M51,'3. Data_Input_Sheet'!U51) -> -30
B36: 15 | D36: Utility Net Income | F36: =F28-SUM(F34:F35) -> 4532.448812 | H36: ='5. Utility Income'!F37 -> 5170.168468 | J36: =J28-SUM(J34:J35) -> 3862.059114 | L36: ='5. Utility Income'!N37 -> 4607.507878 | N36: =N28-SUM(N34:N35) -> 4002.833538 | P36: ='5. Utility Income'!V37 -> 4742.835132
B38: 16 | D38: Utility Rate Base | F38: ='4. Rate_Base'!G18 -> 140646.5851 | H38: ='4. Rate_Base'!G18 -> 140646.5851 | J38: ='4. Rate_Base'!O18 -> 131193.2767 | L38: ='4. Rate_Base'!O18 -> 131193.2767 | N38: ='4. Rate_Base'!W18 -> 131745.4203 | P38: ='4. Rate_Base'!W18 -> 131745.4203
B40: 17 | D40: Deemed Equity Portion of Rate Base | F40: ='7. Cost_of_Capital'!J24 -> 56258.63403 | H40: =F40 -> 56258.63403 | J40: ='7. Cost_of_Capital'!J40 -> 52477.31068 | L40: =J40 -> 52477.31068 | N40: ='7. Cost_of_Capital'!J56 -> 52698.16814 | P40: =N40 -> 52698.16814
B42: 18 | D42: Income/(Equity Portion of Rate Base) | F42: =IF(F40=0,0,F36/F40) -> 0.08056450161 | H42: =IF(H40=0,0,H36/H40) -> 0.0919 | J42: =IF(J40=0,0,J36/J40) -> 0.07359483678 | L42: =IF(L40=0,0,L36/L40) -> 0.0878 | N42: =IF(N40=0,0,N36/N40) -> 0.0759577359 | P42: =IF(P40=0,0,P36/P40) -> 0.09
B43: 19 | D43: Target Return - Equity on Rate Base | F43: ='7. Cost_of_Capital'!L24 -> 0.0919 | H43: ='7. Cost_of_Capital'!L24 -> 0.0919 | J43: ='7. Cost_of_Capital'!L40 -> 0.0878 | L43: ='7. Cost_of_Capital'!L40 -> 0.0878 | N43: ='7. Cost_of_Capital'!L56 -> 0.09 | P43: ='7. Cost_of_Capital'!L56 -> 0.09
B44: 20 | D44: Deficiency/Sufficiency in Return on Equity | F44: =F42-F43 -> -0.01133549839 | H44: =H42-H43 -> 0 | J44: =J42-J43 -> -0.01420516322 | L44: =L42-L43 -> 0 | N44: =N42-N43 -> -0.0140422641 | P44: =P42-P43 -> 0
B46: 21 | D46: Indicated Rate of Return | F46: =IF(F38=0,0,(F36+F25)/F38) -> 0.05551906586 | H46: =IF(H38=0,0,(H36+H25)/H38) -> 0.06005326521 | J46: =IF(J38=0,0,(J36+J25)/J38) -> 0.04965205056 | L46: =IF(L40=0,0,(L36+L25)/L38) -> 0.05533411585 | N46: =IF(N38=0,0,(N36+N25)/N38) -> 0.05248820141 | P46: =IF(P40=0,0,(P36+P25)/P38) -> 0.05810510705
B47: 22 | D47: Requested Rate of Return on Rate Base | F47: ='7. Cost_of_Capital'!L26 -> 0.06005326521 | H47: ='7. Cost_of_Capital'!L26 -> 0.06005326521 | J47: ='7. Cost_of_Capital'!L42 -> 0.05533411585 | L47: ='7. Cost_of_Capital'!L42 -> 0.05533411585 | N47: ='7. Cost_of_Capital'!L58 -> 0.05810510705 | P47: ='7. Cost_of_Capital'!L58 -> 0.05810510705
B48: 23 | D48: Deficiency/Sufficiency in Rate of Return | F48: =F46-F47 -> -0.004534199355 | H48: =H46-H47 -> 0 | J48: =J46-J47 -> -0.005682065289 | L48: =L46-L47 -> 0 | N48: =N46-N47 -> -0.005616905641 | P48: =P46-P47 -> 0
B50: 24 | D50: Target Return on Equity | F50: =H50 -> 5170.168468 | H50: ='7. Cost_of_Capital'!P24 -> 5170.168468 | J50: =L50 -> 4607.507878 | L50: ='7. Cost_of_Capital'!P40 -> 4607.507878 | N50: =P50 -> 4742.835132 | P50: ='7. Cost_of_Capital'!P56 -> 4742.835132
B51: 25 | D51: Revenue Deficiency/(Sufficiency) | F51: =F50-F36 -> 637.7196554 | H51: =H38*H48 -> 0 | J51: =J50-J36 -> 745.4487637 | L51: =L38*L48 -> 0 | N51: =N50-N36 -> 740.0015947 | P51: =P38*P48 -> 0
B52: 26 | D52: Gross Revenue Deficiency/(Sufficiency) | F52: =F51/(1-F33) -> 842.5552386 | G52: (1) | J52: =J51/(1-J33) -> 982.5350564 | K52: (1) | N52: =N51/(1-N33) -> 977.5316119 | O52: (1)
B55: Notes:
B56: (1) | D56: Revenue Deficiency/Sufficiency divided by (1 - Tax Rate)

Sheet 9. Rev_Reqt
B11: Revenue Requirement
B13: Line No. | D13: Particulars | F13: Application | J13: =IF(ISBLANK('3. Data_Input_Sheet'!M12),"",'3. Data_Input_Sheet'!M12) -> Application Update | N13: ='3. Data_Input_Sheet'!U12 -> Per Board Decision
B15: 1 | D15: OM&A Expenses | F15: ='5. Utility Income'!F22 -> 13102.21198 | J15: ='5. Utility Income'!N22 -> 13102.21198 | N15: ='5. Utility Income'!V22 -> 13102.21198
B16: 2 | D16: Amortization/Depreciation | F16: ='5. Utility Income'!F23 -> 5634.577443 | J16: ='5. Utility Income'!N23 -> 5415.321093 | N16: ='5. Utility Income'!V23 -> 5393.321093
B17: 3 | D17: Property Taxes | F17: ='5. Utility Income'!F24 -> 172.0104499 | J17: ='5. Utility Income'!N24 -> 172.0104499 | N17: ='5. Utility Income'!V24 -> 172.0104499
B18: 4 | D18: Capital Taxes | F18: ='6. Taxes_PILs'!G25 -> 0 | J18: ='6. Taxes_PILs'!K25 -> 0 | N18: ='6. Taxes_PILs'!O25 -> 0
B19: 5 | D19: Income Taxes (Grossed up) | F19: ='6. Taxes_PILs'!G33-F18 -> 473.9870277 | J19: ='6. Taxes_PILs'!K33-J18 -> 430.1572092 | N19: ='6. Taxes_PILs'!O33-N18 -> 470.7884364
B20: 6 | D20: Other Expenses | F20: ='5. Utility Income'!F26 -> 33.21907091 | J20: ='5. Utility Income'!N26 -> 33.21907091 | N20: ='5. Utility Income'!V26 -> 33.21907091
B21: 7 | D21: Return
D22: Deemed Interest Expense | F22: ='8. Rev_Def_Suff'!F25 -> 3276.118208 | J22: ='8. Rev_Def_Suff'!L25 -> 2651.956094 | N22: ='8. Rev_Def_Suff'!P25 -> 2912.24662
D23: Return on Deemed Equity | F23: ='8. Rev_Def_Suff'!F50 -> 5170.168468 | J23: ='8. Rev_Def_Suff'!L50 -> 4607.507878 | N23: ='8. Rev_Def_Suff'!P50 -> 4742.835132
B25: 8 | D25: Service Revenue Requirement (before Revenues) | F25: =SUM(F15:F23) -> 27862.29265 | J25: =SUM(J15:J23) -> 26412.38378 | N25: =SUM(N15:O23) -> 26826.63279
B27: 9 | D27: Revenue Offsets | F27: ='3. Data_Input_Sheet'!E33 -> 1456.03154 | J27: ='3. Data_Input_Sheet'!M33 -> 1438.252413 | N27: ='3. Data_Input_Sheet'!U33 -> 1434.111133
B28: 10 | D28: Base Revenue Requirement | F28: =F25-F27 -> 26406.26111 | J28: =J25-J27 -> 24974.13137 | N28: =N25-N27 -> 25392.52165
D29: (excluding Tranformer Owership Allowance credit adjustment)
B31: 11 | D31: Distribution revenue | F31: ='5. Utility Income'!F16 -> 26406.26111 | J31: ='5. Utility Income'!N16 -> 24974.13137 | N31: ='5. Utility Income'!V16 -> 25392.52165
B32: 12 | D32: Other revenue | F32: ='5. Utility Income'!F17 -> 1456.03154 | J32: ='5. Utility Income'!N17 -> 1438.252413 | N32: ='5. Utility Income'!V17 -> 1434.111133
F33: =SUM(F31:F32) -> 27862.29265 | J33: =SUM(J31:J32) -> 26412.38378 | N33: =SUM(N31:N32) -> 26826.63279
B34: 13 | D34: Total revenue
F35: =F33-F25 -> 0 | J35: =J33-J25 -> 0 | N35: =N33-N25 -> 0
B36: 14 | D36: Difference (Total Revenue Less Distribution Revenue Requirement before Revenues) | H36: (1) | L36: (1) | Q36: (1)
B38: Notes
B39: (1) | D39: Line 11 - Line 8

Sheet 10. Tracking_Sheet
B14: Tracking Form
B15: The last row shown is the most current estimate of the cost of service data reflecting the original application and any updates provided by the applicant distributor (for updated evidence, responses to interrogatories, undertakings, etc.) Please ensure a Reference (Column B) and/or Item Description (Column C) is entered. Please note that unused rows will automatically be hidden and the PRINT AREA set when the PRINT BUTTON on Sheet 1 is activated. (1) Short reference to evidence material (interrogatory response, undertaking, exhibit number, Board Decision, Code, Guideline, Report of the Board, etc.) (2) Short description of change, issue, etc. 60 Tracking Rows have been provided below. If you require more, please contact Industry Relations @ IndustryRelations@ontarioenergyboard.ca.
B16: Summary of Proposed Changes 2019
D18: Cost of Capital | F18: Rate Base and Capital Expenditures | I18: Operating Expenses | L18: Revenue Requirement
B19: Reference (1) | C19: Item / Description (2) | D19: Regulated Return on Capital | E19: Regulated Rate of Return | F19: Rate Base | G19: Working Capital | H19: Working Capital Allowance ($) | I19: Amortization / Depreciation | J19: Taxes / PILs | K19: OM&A | L19: Service Revenue Requirement | M19: Other Revenues | N19: Base Revenue Requirement | O19: Grossed up Revenue Deficiency / Sufficiency
C21: Original Application | D21: 8512.74559 | E21: 0.06390886453 | F21: 133201.3274 | G21: 139105.4744 | H21: 18083.71167 | I21: 5370.696792 | J21: 644.5414541 | K21: 12978.26017 | L21: 27711.47353 | M21: 1517.630594 | N21: 26193.84293 | O21: 105.2964744
A23: 1 | B23: Multiple Interrogatories | C23: 2014 Actuals Updated | D23: 8542.066079 | E23: 0.06389248693 | F23: 133694.3746 | G23: 139105.4744 | H23: 18083.71167 | I23: 5369.616608 | J23: 645.1799724 | K23: 12978.26017 | L23: 27740.35235 | M23: 1517.063594 | N23: 26223.28876 | O23: 43.89181259 | Q23: =IF(AND(ISBLANK(B23), ISBLANK(C23)), "X", "") -> 
C24: Change | D24: =IF(D23="","",D23-D21) -> 29.32048876 | E24: =IF(E23="","",E23-E21) -> -1.637759752e-05 | F24: 493.0471172 | G24: 0 | H24: 0 | I24: -1.080183701 | J24: 0.6385183163 | K24: 0 | L24: 28.87882338 | M24: -0.567 | N24: 29.44582338 | O24: -61.40466177
A26: 2 | B26: 4-Energy Probe-50 & 54 | C26: Tax Updates (CCA Class 10 to 50, Adjusted Tax Credits) | D26: 8542.249297 | E26: 0.06389385736 | F26: 133694.3746 | G26: 139105.4744 | H26: 18083.71167 | I26: 5369.616608 | J26: 611.534869 | K26: 12978.26017 | L26: 27706.89047 | M26: 1517.063594 | N26: 26189.82687 | O26: 99.22642237 | Q26: =IF(AND(ISBLANK(B26), ISBLANK(C26)), "X", "") -> 
C27: Change | D27: =IF(D26="","",D26-D23) -> 0.1832185285 | E27: =IF(E26="","",E26-E23) -> 1.370428106e-06 | F27: 0 | G27: 0 | H27: 0 | I27: 0 | J27: -33.64510337 | K27: 0 | L27: -33.46188484 | M27: 0 | N27: -33.46188484 | O27: 55.33460978
A29: 3 | B29: 4.0-Staff-31 | C29: Updated Post-Retirement Benefits Actuarial Valuation | D29: 8540.176829 | E29: 0.06387301732 | F29: 133705.5487 | G29: 139191.4295 | H29: 18094.88584 | I29: 5369.616608 | J29: 685.8130135 | K29: 13064.21532 | L29: 27865.05129 | M29: 1517.063594 | N29: 26347.9877 | O29: 96.69958478 | Q29: =IF(AND(ISBLANK(B29), ISBLANK(C29)), "X", "") -> 
C30: Change | D30: =IF(D29="","",D29-D26) -> -2.072468342 | E30: =IF(E29="","",E29-E26) -> -2.08400411e-05 | F30: 11.17416944 | G30: 85.95514952 | H30: 11.17416944 | I30: 0 | J30: 74.27814441 | K30: 85.95514952 | L30: 158.1608256 | M30: 0 | N30: 158.1608256 | O30: -2.52683759
A32: 4 | B32: 3.0-Staff-25; 3.0-Energy Probe-33/34; 3.0-VECC-26/27/31;1.0-CCC-17; | C32: Updated Load Forecast | D32: 8547.702157 | E32: 0.06387534359 | F32: 133818.492 | G32: 140060.2241 | H32: 18207.82913 | I32: 5369.616608 | J32: 687.3236203 | K32: 13064.21532 | L32: 27874.08723 | M32: 1512.656407 | N32: 26361.43082 | O32: 112.1786428 | Q32: =IF(AND(ISBLANK(B32), ISBLANK(C32)), "X", "") -> 
C33: Change | D33: =IF(D32="","",D32-D29) -> 7.525328063 | E33: =IF(E32="","",E32-E29) -> 2.326277669e-06 | F33: 112.9432959 | G33: 868.7945837 | H33: 112.9432959 | I33: 0 | J33: 1.510606825 | K33: 0 | L33: 9.035934888 | M33: -4.407186948 | N33: 13.44312184 | O33: 15.47905799
A35: 5 | B35: 2.0-Staff-6 & Multiple Others | C35: DSP/Capital Updates to capacity solutions (HONI TS contributions & new MS9 substation) and changes to timing of In Service dates | D35: 9423.000126 | E35: 0.06405968609 | F35: 147097.1948 | G35: 140060.2241 | H35: 18207.82913 | I35: 5664.577442 | J35: 585.1947851 | K35: 13064.21532 | L35: 28942.2172 | M35: 1512.656407 | N35: 27429.56079 | O35: 749.4684003 | Q35: =IF(AND(ISBLANK(B35), ISBLANK(C35)), "X", "") -> 
C36: Change | D36: =IF(D35="","",D35-D32) -> 875.2979691 | E36: =IF(E35="","",E35-E32) -> 0.0001843424917 | F36: 13278.70283 | G36: 0 | H36: 0 | I36: 294.9608343 | J36: -102.1288351 | K36: 0 | L36: 1068.129968 | M36: 0 | N36: 1068.129968 | O36: 637.2897576
A38: 6 | B38: Undertaking TC2.5 | C38: Adjustment for CDM Activities | D38: 9424.236258 | E38: 0.06405937296 | F38: 147117.2105 | G38: 140214.1909 | H38: 18227.84481 | I38: 5664.577442 | J38: 585.4622625 | K38: 13064.21532 | L38: 28943.72081 | M38: 1512.656407 | N38: 27431.0644 | O38: 804.5806191 | Q38: =IF(AND(ISBLANK(B38), ISBLANK(C38)), "X", "") -> 
C39: Change | D39: =IF(D38="","",D38-D35) -> 1.236132478 | E39: =IF(E38="","",E38-E35) -> -3.131210445e-07 | F39: 20.0156768 | G39: 153.9667446 | H39: 20.0156768 | I39: 0 | J39: 0.2674773388 | K39: 0 | L39: 1.503609817 | M39: 0 | N39: 1.503609817 | O39: 55.11221877
A41: 7 | B41: Update June 2015 | C41: Revised Working Capital Proposal (to 10.91% from 13.0%) | D41: 9238.221472 | E41: 0.06407123055 | F41: 144186.7339 | G41: 140214.1909 | H41: 15297.36822 | I41: 5664.577442 | J41: 546.309541 | K41: 13064.21532 | L41: 28718.5533 | M41: 1512.656407 | N41: 27205.89689 | O41: 836.1465309 | Q41: =IF(AND(ISBLANK(B41), ISBLANK(C41)), "X", "") -> 
C42: Change | D42: =IF(D41="","",D41-D38) -> -186.0147865 | E42: =IF(E41="","",E41-E38) -> 1.185758376e-05 | F42: -2930.476589 | G42: 0 | H42: -2930.476589 | I42: 0 | J42: -39.15272144 | K42: 0 | L42: -225.1675079 | M42: 0 | N42: -225.1675079 | O42: 31.56591182
A44: 8 | B44: Update June 2015 | C44: Revised Load Forecast | D44: 9251.422492 | E44: 0.06407110215 | F44: 144393.0599 | G44: 142105.3547 | H44: 15503.69419 | I44: 5664.577442 | J44: 549.0655828 | K44: 13064.21532 | L44: 28734.51036 | M44: 1432.592063 | N44: 27301.9183 | O44: 688.3559678 | Q44: =IF(AND(ISBLANK(B44), ISBLANK(C44)), "X", "") -> 
C45: Change | D45: =IF(D44="","",D44-D41) -> 13.20101965 | E45: =IF(E44="","",E44-E41) -> -1.283940281e-07 | F45: 206.325971 | G45: 1891.163804 | H45: 206.325971 | I45: 0 | J45: 2.756041775 | K45: 0 | L45: 15.95706143 | M45: -80.06434392 | N45: 96.02140535 | O45: -147.7905631
A47: 9 | B47: Update June 2015 | C47: Move MS9 Land to WIP in 2015 ($158.7k), Added back to Land 2018 | D47: 9251.4797 | E47: 0.06407149835 | F47: 144393.0599 | G47: 142105.3547 | H47: 15503.69419 | I47: 5664.577442 | J47: 549.0655828 | K47: 13064.21532 | L47: 28734.56757 | M47: 1432.592063 | N47: 27301.9755 | O47: 704.7107838 | Q47: =IF(AND(ISBLANK(B47), ISBLANK(C47)), "X", "") -> 
C48: Change | D48: =IF(D47="","",D47-D44) -> 0.05720860082 | E48: =IF(E47="","",E47-E44) -> 3.962004881e-07 | F48: 0 | G48: 0 | H48: 0 | I48: 0 | J48: 0 | K48: 0 | L48: 0.05720860082 | M48: 0 | N48: 0.05720860082 | O48: 16.35481599
A50: 10 | B50: Update June 2015 | C50: Update Regulatory Expenses (higher rate application costs partially offset by lower forecast OEB assessment fees) | D50: 9251.7513 | E50: 0.06407153988 | F50: 144397.2053 | G50: 142143.3513 | H50: 15507.83963 | I50: 5664.577442 | J50: 549.1209573 | K50: 13102.21198 | L50: 28772.8912 | M50: 1432.592063 | N50: 27340.29914 | O50: 657.3093125 | Q50: =IF(AND(ISBLANK(B50), ISBLANK(C50)), "X", "") -> 
C51: Change | D51: =IF(D50="","",D50-D47) -> 0.2716003041 | E51: =IF(E50="","",E50-E47) -> 4.152449828e-08 | F51: 4.145435793 | G51: 37.99666172 | H51: 4.145435793 | I51: 0 | J51: 0.05537446857 | K51: 37.99666172 | L51: 38.32363649 | M51: 0 | N51: 38.32363649 | O51: -47.40147124
A53: 11 | B53: Update June 2015 | C53: Update Interest Rates for 2015 Loan ($15m loan drawn June 2015 at 2.71%) | D53: 8880.658014 | E53: 0.06150159204 | F53: 144397.2053 | G53: 142143.3513 | H53: 15507.83963 | I53: 5664.577442 | J53: 549.1209573 | K53: 13102.21198 | L53: 28401.79792 | M53: 1432.592063 | N53: 26969.20585 | O53: 672.0862512 | Q53: =IF(AND(ISBLANK(B53), ISBLANK(C53)), "X", "") ->  | S53: Numbers going into Oral Hearing 30 June 2015
C54: Change | D54: =IF(D53="","",D53-D50) -> -371.0932865 | E54: =IF(E53="","",E53-E50) -> -0.002569947844 | F54: 0 | G54: 0 | H54: 0 | I54: 0 | J54: 0 | K54: 0 | L54: -371.0932865 | M54: 0 | N54: -371.0932865 | O54: 14.77693867
A56: 12 | B56: Oral Hearing J2.12 | C56: Correct 2015 weighted debt rate - to 4.11% from 4.24% | D56: 8880.658014 | E56: 0.06150159204 | F56: 144397.2053 | G56: 142143.3513 | H56: 15507.83963 | I56: 5664.577442 | J56: 549.1209573 | K56: 13102.21198 | L56: 28401.79792 | M56: 1432.592063 | N56: 26969.20585 | O56: 674.4520271 | Q56: =IF(AND(ISBLANK(B56), ISBLANK(C56)), "X", "") -> 
C57: Change | D57: =IF(D56="","",D56-D53) -> 0 | E57: =IF(E56="","",E56-E53) -> 0 | F57: 0 | G57: 0 | H57: 0 | I57: 0 | J57: 0 | K57: 0 | L57: 0 | M57: 0 | N57: 0 | O57: 2.365775906
A59: 13 | B59: Oral Hearing J3.2 | C59: Correct Other Revenue for 2016-2019 | D59: 8880.658014 | E59: 0.06150159204 | F59: 144397.2053 | G59: 142143.3513 | H59: 15507.83963 | I59: 5664.577442 | J59: 549.1209573 | K59: 13102.21198 | L59: 28401.79792 | M59: 1492.768347 | N59: 26909.02957 | O59: 640.3231164 | Q59: =IF(AND(ISBLANK(B59), ISBLANK(C59)), "X", "") -> 
C60: Change | D60: =IF(D59="","",D59-D56) -> 0 | E60: =IF(E59="","",E59-E56) -> 0 | F60: 0 | G60: 0 | H60: 0 | I60: 0 | J60: 0 | K60: 0 | L60: 0 | M60: 60.17628353 | N60: -60.17628353 | O60: -34.12891075
A62: 14 | B62: Oral Hearing J1.1 | C62: Reduce cost of power expense lead to 20.89 from 22.64 | D62: 8802.853836 | E62: 0.06150159204 | F62: 143132.1295 | G62: 142143.3513 | H62: 14242.7638 | I62: 5664.577442 | J62: 532.2239361 | K62: 13102.21198 | L62: 28307.09672 | M62: 1492.768347 | N62: 26814.32837 | O62: 664.6671734 | Q62: =IF(AND(ISBLANK(B62), ISBLANK(C62)), "X", "") ->  | S62: At end of Oral Hearing, filed 8 July 2015, Exhibit K4.1
C63: Change | D63: =IF(D62="","",D62-D59) -> -77.80417739 | E63: =IF(E62="","",E62-E59) -> 0 | F63: -1265.075827 | G63: 0 | H63: -1265.075827 | I63: 0 | J63: -16.89702122 | K63: 0 | L63: -94.70119861 | M63: 0 | N63: -94.70119861 | O63: 24.34405708
A65: 15 | B65: Board Decision | C65: Working Cap Allowance to 9.37% | D65: 8751.561642 | E65: 0.06154048629 | F65: 142208.1977 | G65: 142143.3513 | H65: 13318.83202 | I65: 5664.577442 | J65: 519.8857771 | K65: 13102.21198 | L65: 28243.46637 | M65: 1492.768347 | N65: 26750.69802 | O65: 645.1842975 | Q65: =IF(AND(ISBLANK(B65), ISBLANK(C65)), "X", "") -> 
C66: Change | D66: =IF(D65="","",D65-D62) -> -51.29219447 | E66: =IF(E65="","",E65-E62) -> 3.88942497e-05 | F66: -923.9317836 | G66: 0 | H66: -923.9317836 | I66: 0 | J66: -12.33815894 | K66: 0 | L66: -63.63035341 | M66: 0 | N66: -63.63035341 | O66: -19.48287597
A68: 16 | B68: Board Decision | C68: Update Cost of Capital with 2016 OEB parameters for 2016-2019 | D68: 8539.151261 | E68: 0.0600468285 | F68: 142208.1977 | G68: 142143.3513 | H68: 13318.83202 | I68: 5664.577442 | J68: 497.4295134 | K68: 13102.21198 | L68: 28008.59972 | M68: 1492.768347 | N68: 26515.83137 | O68: 603.0467037 | Q68: =IF(AND(ISBLANK(B68), ISBLANK(C68)), "X", "") -> 
C69: Change | D69: =IF(D68="","",D68-D65) -> -212.4103812 | E69: =IF(E68="","",E68-E65) -> -0.001493657782 | F69: 0 | G69: 0 | H69: 0 | I69: 0 | J69: -22.45626368 | K69: 0 | L69: -234.8666449 | M69: 0 | N69: -234.8666449 | O69: -42.13759376
A71: 17 | B71: Board Decision | C71: Reduce Capital Budget by $400k in 2015, 2016 & 2017 to match new connection costs with 1.5% customer growth | D71: 8468.096612 | E71: 0.06001562562 | F71: 141098.1977 | G71: 142143.3513 | H71: 13318.83202 | I71: 5634.577443 | J71: 500.0782628 | K71: 13102.21198 | L71: 27910.19382 | M71: 1492.768347 | N71: 26417.42547 | O71: 639.3436157 | Q71: =IF(AND(ISBLANK(B71), ISBLANK(C71)), "X", "") -> 
C72: Change | D72: =IF(D71="","",D71-D68) -> -71.05464915 | E72: =IF(E71="","",E71-E68) -> -3.120287896e-05 | F72: -1109.999992 | G72: 0 | H72: 0 | I72: -29.99999974 | J72: 2.648749341 | K72: 0 | L72: -98.40589956 | M72: 0 | N72: -98.40589956 | O72: 36.29691204
A74: 18 | B74: Board Decision | C74: Move HONI Enfield TS contributions from capital in 2015 ($1.35m) and 2018 ($5.4m), adding back in 2018. | D74: 8485.66189 | E74: 0.06005074033 | F74: 141308.1977 | G74: 142143.3513 | H74: 13318.83202 | I74: 5634.577443 | J74: 482.7113333 | K74: 13102.21198 | L74: 27910.39217 | M74: 1492.768347 | N74: 26417.62382 | O74: 839.9190322 | Q74: =IF(AND(ISBLANK(B74), ISBLANK(C74)), "X", "") -> 
C75: Change | D75: =IF(D74="","",D74-D71) -> 17.56527792 | E75: =IF(E74="","",E74-E71) -> 3.511470843e-05 | F75: 210.0000062 | G75: 0 | H75: 0 | I75: 0 | J75: -17.36692946 | K75: 0 | L75: 0.1983484559 | M75: 0 | N75: 0.1983484559 | O75: 200.5754165
R76: Page Break 1
A77: 19 | B77: Board Decision | C77: Adjust Rate Base for Depreciation Expense Deferral Account | D77: 8446.286675 | E77: 0.06005326521 | F77: 140646.5851 | G77: 137719.0754 | H77: 12904.27736 | I77: 5634.577443 | J77: 473.9870277 | K77: 13102.21198 | L77: 27862.29265 | M77: 1456.03154 | N77: 26406.26111 | O77: 842.5552386 | Q77: =IF(AND(ISBLANK(B77), ISBLANK(C77)), "X", "") -> 
C78: Change | D78: =IF(D77="","",D77-D74) -> -39.37521428 | E78: =IF(E77="","",E77-E74) -> 2.524878718e-06 | F78: -661.6126567 | G78: -4424.275952 | H78: -414.5546567 | I78: 0 | J78: -8.724305578 | K78: 0 | L78: -48.09951986 | M78: -36.73680692 | N78: -11.36271294 | O78: 2.636206369
A80: 1 | C80: Board Interim Approval Dec 2015 | D80: 8446.286675 | E80: 0.06005326521 | F80: 140646.5851 | G80: 137719.0754 | H80: 12904.27736 | I80: 5634.577443 | J80: 473.9870277 | K80: 13102.21198 | L80: 27862.29265 | M80: 1456.03154 | N80: 26406.26111 | O80: 842.5552386 | Q80: =IF(AND(ISBLANK(B80), ISBLANK(C80)), "X", "") -> 
A83: 2 | B83: Mid-Term Update June 2017 | C83: Update for 2017 cost of capital parameters | D83: 7782.554433 | E83: 0.05533411585 | F83: 140646.5851 | G83: 137719.0754 | H83: 12904.27736 | I83: 5634.577443 | J83: 391.3212029 | K83: 13102.21198 | L83: 27115.89458 | M83: 1456.03154 | N83: 25659.86304 | O83: 755.7721356 | Q83: =IF(AND(ISBLANK(B83), ISBLANK(C83)), "X", "") -> 
C84: Change | D84: =IF(D83="","",D83-D80) -> -663.7322424 | E84: =IF(E83="","",E83-E80) -> -0.004719149363 | F84: 0 | G84: 0 | H84: 0 | I84: 0 | J84: -82.66582482 | K84: 0 | L84: -746.3980672 | M84: 0 | N84: -746.3980672 | O84: -86.78310302
C85: Cumulative Change | D85: =IF(D83="","",D83-D$80) -> -663.7322424 | E85: =IF(E83="","",E83-E$80) -> -0.004719149363 | F85: 0 | G85: 0 | H85: 0 | I85: 0 | J85: -82.66582482 | K85: 0 | L85: -746.3980672 | M85: 0 | N85: -746.3980672 | O85: -86.78310302
A87: 3 | B87: Mid-Term Update June 2017 | C87: Update new customer connections (load forecast) | D87: 7733.933166 | E87: 0.05533411585 | F87: 139767.8999 | G87: 128341.4321 | H87: 12025.59219 | I87: 5634.577443 | J87: 380.2741336 | K87: 13102.21198 | L87: 27056.22625 | M87: 1438.252413 | N87: 25617.97383 | O87: 1063.05904 | Q87: =IF(AND(ISBLANK(B87), ISBLANK(C87)), "X", "") -> 
C88: Change | D88: =IF(D87="","",D87-D83) -> -48.62126714 | E88: =IF(E87="","",E87-E83) -> 0 | F88: -878.6851727 | G88: -9377.643252 | H88: -878.6851727 | I88: 0 | J88: -11.04706933 | K88: 0 | L88: -59.66833647 | M88: -17.7791265 | N88: -41.88920997 | O88: 307.286904
C89: Cumulative Change | D89: =IF(D87="","",D87-D$80) -> -712.3535095 | E89: =IF(E87="","",E87-E$80) -> -0.004719149363 | F89: -878.6851727 | G89: -9377.643252 | H89: -878.6851727 | I89: 0 | J89: -93.71289415 | K89: 0 | L89: -806.0664037 | M89: -17.7791265 | N89: -788.2872772 | O89: 220.503801
A91: 4 | B91: Mid-Term Update June 2017 | C91: Update Cost of Power | D91: 7732.410632 | E91: 0.05533411585 | F91: 139740.3846 | G91: 128047.7792 | H91: 11998.07691 | I91: 5634.577443 | J91: 379.928261 | K91: 13102.21198 | L91: 27054.35784 | M91: 1438.252413 | N91: 25616.10543 | O91: 1074.831947 | Q91: =IF(AND(ISBLANK(B91), ISBLANK(C91)), "X", "") -> 
C92: Change | D92: =IF(D91="","",D91-D87) -> -1.522533554 | E92: =IF(E91="","",E91-E87) -> 0 | F92: -27.51527753 | G92: -293.6529085 | H92: -27.51527753 | I92: 0 | J92: -0.3458726013 | K92: 0 | L92: -1.868406156 | M92: 0 | N92: -1.868406156 | O92: 11.77290715
C93: Cumulative Change | D93: =IF(D91="","",D91-D$80) -> -713.8760431 | E93: =IF(E91="","",E91-E$80) -> -0.004719149363 | F93: -906.2004502 | G93: -9671.29616 | H93: -906.2004502 | I93: 0 | J93: -94.05876675 | K93: 0 | L93: -807.9348099 | M93: -17.7791265 | N93: -790.1556834 | O93: 232.2767082
A95: 5 | B95: Mid-Term Update June 2017 | C95: Update 2018/2019 Capital Forecasts | D95: 7259.463971 | E95: 0.05533411585 | F95: 131193.2767 | G95: 128047.7792 | H95: 11998.07691 | I95: 5415.321093 | J95: 430.1572092 | K95: 13102.21198 | L95: 26412.38378 | M95: 1438.252413 | N95: 24974.13137 | O95: 982.5350564 | Q95: =IF(AND(ISBLANK(B95), ISBLANK(C95)), "X", "") -> 
C96: Change | D96: =IF(D95="","",D95-D91) -> -472.9466607 | E96: =IF(E95="","",E95-E91) -> 0 | F96: -8547.107937 | G96: 0 | H96: 0 | I96: -219.2563492 | J96: 50.22894825 | K96: 0 | L96: -641.9740617 | M96: 0 | N96: -641.9740617 | O96: -92.29689036
C97: Cumulative Change | D97: =IF(D95="","",D95-D$80) -> -1186.822704 | E97: =IF(E95="","",E95-E$80) -> -0.004719149363 | F97: -9453.308387 | G97: -9671.29616 | H97: -906.2004502 | I97: -219.2563492 | J97: -43.82981851 | K97: 0 | L97: -1449.908872 | M97: -17.7791265 | N97: -1432.129745 | O97: 139.9798178
C99: Board Decision Dec 2017
A101: 6 | B101: Load Forecast | C101: Adjust growth rate to 1.9% using final forecasting model approved in the Custom IR proceeding | D101: 7290.416146 | E101: 0.0553360927 | F101: 131747.9386 | G101: 133967.3304 | H101: 12552.73886 | I101: 5415.321093 | J101: 437.1388922 | K101: 13102.21198 | L101: 26450.31764 | M101: 1434.111133 | N101: 25016.2065 | O101: 932.3101612 | Q101: =IF(AND(ISBLANK(B101), ISBLANK(C101)), "X", "") -> 
C102: Change | D102: =IF(D101="","",D101-D95) -> 30.95217488 | E102: =IF(E101="","",E101-E95) -> 1.976853838e-06 | F102: 554.6619475 | G102: 5919.551201 | H102: 554.6619475 | I102: 0 | J102: 6.98168294 | K102: 0 | L102: 37.93385782 | M102: -4.141280368 | N102: 42.07513819 | O102: -50.22489524
C103: Cumulative Change | D103: =IF(D101="","",D101-D$80) -> -1155.870529 | E103: =IF(E101="","",E101-E$80) -> -0.004717172509 | F103: -8898.646439 | G103: -3751.74496 | H103: -351.5385027 | I103: -219.2563492 | J103: -36.84813557 | K103: 0 | L103: -1411.975014 | M103: -21.92040687 | N103: -1390.054607 | O103: 89.75492255
A105: 7 | B105: Rate Base | C105: Use 'forecasted' 2017 closing fixed asset balance as staring point (overall 2015-2017 reduction in spend of $884k). | D105: 7245.151177 | E105: 0.05533609235 | F105: 130929.9386 | G105: 133967.3304 | H105: 12552.73886 | I105: 5393.321093 | J105: 418.9598009 | K105: 13102.21198 | L105: 26364.87358 | M105: 1434.111133 | N105: 24930.76244 | O105: 931.6964528 | Q105: =IF(AND(ISBLANK(B105), ISBLANK(C105)), "X", "") -> 
C106: Change | D106: =IF(D105="","",D105-D101) -> -45.26496968 | E106: -3.501756038e-10 | F106: -818 | G106: 0 | H106: 0 | I106: -22 | J106: -18.17909125 | K106: 0 | L106: -85.44406093 | M106: 0 | N106: -85.44406093 | O106: -0.6137083985
C107: Cumulative Change | D107: =IF(D105="","",D105-D$80) -> -1201.135499 | E107: =IF(E105="","",E105-E$80) -> -0.004717172859 | F107: -9716.646439 | G107: -3751.74496 | H107: -351.5385027 | I107: -241.2563492 | J107: -55.02722681 | K107: 0 | L107: -1497.419075 | M107: -21.92040687 | N107: -1475.498668 | O107: 89.14121416
A109: 8 | B109: Cost of Capital | C109: Update for 2018 cost of capital parameters as issued by OEB in November 2017 | D109: 7607.698101 | E109: 0.05810510705 | F109: 130929.9386 | G109: 133967.3304 | H109: 12552.73886 | I109: 5393.321093 | J109: 460.2598602 | K109: 13102.21198 | L109: 26768.72056 | M109: 1434.111133 | N109: 25334.60943 | O109: 973.6965093 | Q109: =IF(AND(ISBLANK(B109), ISBLANK(C109)), "X", "") -> 
C110: Change | D110: =IF(D109="","",D109-D105) -> 362.5469245 | E110: =IF(E109="","",E109-E105) -> 0.002769014698 | F110: 0 | G110: 0 | H110: 0 | I110: 0 | J110: 41.30005926 | K110: 0 | L110: 403.8469838 | M110: 0 | N110: 403.8469838 | O110: 42.00005659
C111: Cumulative Change | D111: =IF(D109="","",D109-D$80) -> -838.5885741 | E111: =IF(E109="","",E109-E$80) -> -0.001948158161 | F111: -9716.646439 | G111: -3751.74496 | H111: -351.5385027 | I111: -241.2563492 | J111: -13.72716756 | K111: 0 | L111: -1093.572091 | M111: -21.92040687 | N111: -1071.651684 | O111: 131.1412707
A113: 9 | B113: Working Capital Allowance | C113: Use most recent RPP/GA Modifier, remove 2% inflation from COP Forecast | D113: 7673.406568 | E113: 0.05810510705 | F113: 132060.7939 | G113: 146036.2234 | H113: 13683.59413 | I113: 5393.321093 | J113: 474.8607178 | K113: 13102.21198 | L113: 26849.02988 | M113: 1434.111133 | N113: 25414.91875 | O113: 980.5679062 | Q113: =IF(AND(ISBLANK(B113), ISBLANK(C113)), "X", "") -> 
C114: Change | D114: =IF(D113="","",D113-D109) -> 65.70846649 | E114: =IF(E113="","",E113-E109) -> 0 | F114: 1130.855269 | G114: 12068.89295 | H114: 1130.855269 | I114: 0 | J114: 14.60085764 | K114: 0 | L114: 80.30932413 | M114: 0 | N114: 80.30932413 | O114: 6.871396882
C115: Cumulative Change | D115: =IF(D113="","",D113-D$80) -> -772.8801076 | E115: =IF(E113="","",E113-E$80) -> -0.001948158161 | F115: -8585.79117 | G115: 8317.147991 | H115: 779.3167668 | I115: -241.2563492 | J115: 0.8736900869 | K115: 0 | L115: -1013.262767 | M115: -21.92040687 | N115: -991.3423598 | O115: 138.0126676
A117: 10 | B117: RTS Rates | C117: Recalculate using new UTRs per Table 1 of decision. Also revert Loss Factor to as approved in 2015 Custom IR decision | D117: 7672.493236 | E117: 0.05810510705 | F117: 132045.0753 | G117: 145868.4686 | H117: 13667.87551 | I117: 5393.321093 | J117: 474.6577432 | K117: 13102.21198 | L117: 26847.91358 | M117: 1434.111133 | N117: 25413.80244 | O117: 979.6877143 | Q117: =IF(AND(ISBLANK(B117), ISBLANK(C117)), "X", "") -> 
C118: Change | D118: =IF(D117="","",D117-D113) -> -0.9133322133 | E118: =IF(E117="","",E117-E113) -> 0 | F118: -15.71862199 | G118: -167.7547704 | H118: -15.71862199 | I118: 0 | J118: -0.2029746081 | K118: 0 | L118: -1.116306821 | M118: 0 | N118: -1.116306821 | O118: -0.8801918909
C119: Cumulative Change | D119: =IF(D117="","",D117-D$80) -> -773.7934398 | E119: =IF(E117="","",E117-E$80) -> -0.001948158161 | F119: -8601.509792 | G119: 8149.393221 | H119: 763.5981448 | I119: -241.2563492 | J119: 0.6707154788 | K119: 0 | L119: -1014.379074 | M119: -21.92040687 | N119: -992.4586667 | O119: 137.1324757
A121: 11 | B121: DRO - Working Capital Allowance | C121: Apply weighted GA rate to reflect efect of GA modifier, and adjust WMS rate to 0.0036 from 0.0032 in cost of power calculations. | D121: =IF($C121="","",'7. Cost_of_Capital'!$P$58) -> 7655.081753 | E121: =IF($C121="","",'7. Cost_of_Capital'!$L$58) -> 0.05810510705 | F121: =IF($C121="","",'4. Rate_Base'!$W$18) -> 131745.4203 | G121: =IF($C121="","",'4. Rate_Base'!$W$26) -> 142670.4435 | H121: =IF($C121="","",'4. Rate_Base'!$W$30) -> 13368.22056 | I121: =IF($C121="","",'9. Rev_Reqt'!$N$16) -> 5393.321093 | J121: =IF($C121="","",'9. Rev_Reqt'!$N$19) -> 470.7884364 | K121: =IF($C121="","",'9. Rev_Reqt'!$N$15) -> 13102.21198 | L121: =IF($C121="","",'9. Rev_Reqt'!$N$25) -> 26826.63279 | M121: =IF($C121="","",'9. Rev_Reqt'!$N$32) -> 1434.111133 | N121: =IF($C121="","",'9. Rev_Reqt'!$N$28) -> 25392.52165 | O121: =IF($C121="","",'8. Rev_Def_Suff'!$N$52) -> 977.5316119 | Q121: =IF(AND(ISBLANK(B121), ISBLANK(C121)), "X", "") -> 
C122: Change | D122: =IF(D121="","",D121-D117) -> -17.41148287 | E122: =IF(E121="","",E121-E117) -> 0 | F122: -299.6549486 | G122: -3198.025065 | H122: -299.6549486 | I122: 0 | J122: -3.869306834 | K122: 0 | L122: -21.2807897 | M122: 0 | N122: -21.2807897 | O122: -2.156102485
C123: Cumulative Change | D123: =IF(D121="","",D121-D$80) -> -791.2049227 | E123: =IF(E121="","",E121-E$80) -> -0.001948158161 | F123: -8901.16474 | G123: 4951.368156 | H123: 463.9431962 | I123: -241.2563492 | J123: -3.198591355 | K123: 0 | L123: -1035.659863 | M123: -21.92040687 | N123: -1013.739456 | O123: 134.9763732
A125: 12 | D125: =IF($C125="","",'7. Cost_of_Capital'!$P$58) ->  | E125: =IF($C125="","",'7. Cost_of_Capital'!$L$58) ->  | F125: =IF($C125="","",'4. Rate_Base'!$W$18) ->  | G125: =IF($C125="","",'4. Rate_Base'!$W$26) ->  | H125: =IF($C125="","",'4. Rate_Base'!$W$30) ->  | I125: =IF($C125="","",'9. Rev_Reqt'!$N$16) ->  | J125: =IF($C125="","",'9. Rev_Reqt'!$N$19) ->  | K125: =IF($C125="","",'9. Rev_Reqt'!$N$15) ->  | L125: =IF($C125="","",'9. Rev_Reqt'!$N$25) ->  | M125: =IF($C125="","",'9. Rev_Reqt'!$N$32) ->  | N125: =IF($C125="","",'9. Rev_Reqt'!$N$28) ->  | O125: =IF($C125="","",'8. Rev_Def_Suff'!$N$52) ->  | Q125: =IF(AND(ISBLANK(B125), ISBLANK(C125)), "X", "") -> X
C126: Change | D126: =IF(D125="","",D125-D121) ->  | E126: =IF(E125="","",E125-E121) -> 
C127: Cumulative Change | D127: =IF(D125="","",D125-D$80) ->  | E127: =IF(E125="","",E125-E$80) -> 
Q129: =IF(AND(ISBLANK(B129), ISBLANK(C129)), "X", "") -> X
C130: Change
Q132: =IF(AND(ISBLANK(B132), ISBLANK(C132)), "X", "") -> X
C133: Change
Q135: =IF(AND(ISBLANK(B135), ISBLANK(C135)), "X", "") -> X
C136: Change
Q138: =IF(AND(ISBLANK(B138), ISBLANK(C138)), "X", "") -> X
C139: Change
Q141: =IF(AND(ISBLANK(B141), ISBLANK(C141)), "X", "") -> X
C142: Change
R143: Page Break 2
Q144: =IF(AND(ISBLANK(B144), ISBLANK(C144)), "X", "") -> X
C145: Change
Q147: =IF(AND(ISBLANK(B147), ISBLANK(C147)), "X", "") -> X
C148: Change
Q150: =IF(AND(ISBLANK(B150), ISBLANK(C150)), "X", "") -> X
C151: Change
Q153: =IF(AND(ISBLANK(B153), ISBLANK(C153)), "X", "") -> X
C154: Change
Q156: =IF(AND(ISBLANK(B156), ISBLANK(C156)), "X", "") -> X
C157: Change
Q159: =IF(AND(ISBLANK(B159), ISBLANK(C159)), "X", "") -> X
C160: Change
Q162: =IF(AND(ISBLANK(B162), ISBLANK(C162)), "X", "") -> X
C163: Change
Q165: =IF(AND(ISBLANK(B165), ISBLANK(C165)), "X", "") -> X
C166: Change
Q168: =IF(AND(ISBLANK(B168), ISBLANK(C168)), "X", "") -> X
C169: Change
Q171: =IF(AND(ISBLANK(B171), ISBLANK(C171)), "X", "") -> X
C172: Change
Q174: =IF(AND(ISBLANK(B174), ISBLANK(C174)), "X", "") -> X
C175: Change
Q177: =IF(AND(ISBLANK(B177), ISBLANK(C177)), "X", "") -> X
C178: Change
Q180: =IF(AND(ISBLANK(B180), ISBLANK(C180)), "X", "") -> X
C181: Change
Q183: =IF(AND(ISBLANK(B183), ISBLANK(C183)), "X", "") -> X
C184: Change
Q186: =IF(AND(ISBLANK(B186), ISBLANK(C186)), "X", "") -> X
C187: Change
Q189: =IF(AND(ISBLANK(B189), ISBLANK(C189)), "X", "") -> X
C190: Change
Q192: =IF(AND(ISBLANK(B192), ISBLANK(C192)), "X", "") -> X
C193: Change
R194: Page Break 3
Q195: =IF(AND(ISBLANK(B195), ISBLANK(C195)), "X", "") -> X
C196: Change
Q198: =IF(AND(ISBLANK(B198), ISBLANK(C198)), "X", "") -> X
C199: Change
Q201: =IF(AND(ISBLANK(B201), ISBLANK(C201)), "X", "") -> X
C202: Change
Q204: =IF(AND(ISBLANK(B204), ISBLANK(C204)), "X", "") -> X
C205: Change
Q207: =IF(AND(ISBLANK(B207), ISBLANK(C207)), "X", "") -> X
C208: Change
Q210: =IF(AND(ISBLANK(B210), ISBLANK(C210)), "X", "") -> X
C211: Change
Q213: =IF(AND(ISBLANK(B213), ISBLANK(C213)), "X", "") -> X
C214: Change
R216: Page Break 4
B217: Cumulative Change re Board Decision Dec 2017 Vs Interim Filing June 2017 | D217: =D121-D$95 -> 395.6177812 | E217: =E121-E$95 -> 0.002770991202 | F217: 552.1436464 | G217: 14622.66432 | H217: 1370.143646 | I217: -22 | J217: 40.63122715 | K217: 0 | L217: 414.2490083 | M217: -4.141280368 | N217: 418.3902887 | O217: -5.003444539
B225: Working Capital Allowance | D225: Regulated Return on Capital | E225: Regulated Rate of Return | F225: Rate Base | G225: Working Capital | H225: Working Capital Allowance ($) | I225: Amortization / Depreciation | J225: Taxes / PILs | K225: OM&A | L225: Service Revenue Requirement | M225: Other Revenues | N225: Base Revenue Requirement | O225: Grossed up Revenue Deficiency / Sufficiency
C226: Revert to Loss Factor per approved Custom IR | D226: 7.607348656 | E226: 0 | F226: 130.9239246 | G226: 1397.267072 | H226: 130.9239246 | I226: 0 | J226: 1.690203991 | K226: 0 | L226: 9.297552647 | M226: 0 | N226: 9.297552647 | O226: -7.113247861
C227: Remove 2% increase for inflation | D227: -23.17449583 | E227: 0 | F227: -398.8375033 | G227: -4256.536855 | H227: -398.8375033 | I227: 0 | J227: -5.148751553 | K227: 0 | L227: -28.32324738 | M227: 0 | N227: -28.32324738 | O227: -18.32498584
C228: Use most recent RPP/GA Modifier | D228: 81.27561366 | E228: 0 | F228: 1398.768848 | G228: 14928.16273 | H228: 1398.768848 | I228: 0 | J228: 18.0594052 | K228: 0 | L228: 99.33501887 | M228: 0 | N228: 99.33501887 | O228: 32.30963058
D231: =SUM(D226:D230) -> 65.70846649 | E231: 0 | F231: 1130.855269 | G231: 12068.89295 | H231: 1130.855269 | I231: 0 | J231: 14.60085764 | K231: 0 | L231: 80.30932413 | M231: 0 | N231: 80.30932413 | O231: 6.871396882

Sheet Not part of Model ==> (hidden)

Sheet Data (hidden)
I1: AS FILED JUNE 2017 | N1: CHANGE
B4: Rate Base
B5: Gross Fixed Assets (average) | C5: 216690.8987 | I5: 217574.8987 | N5: =C5-I5 -> -884
B6: Accumulated Depreciation (average) | C6: -98313.69888 | I6: -98379.69888 | N6: =C6-I6 -> 66
B7: Allowance for Working Capital:
B8: Controllable Expenses | C8: 13307.4415 | I8: 13307.4415 | N8: =C8-I8 -> 0
B9: Cost of Power | C9: 129363.002 | I9: 114740.3377 | N9: 14622.66432
B10: Working Capital Rate (%) | C10: 0.0937 | I10: 0.0937 | N10: 0
B12: Utility Income
B13: Operating Revenues: | F13: Deficiency | L13: Deficiency
B14: Distribution Revenue at Current Rates | C14: 24414.99004 | F14: =C15-C14 -> 977.5316119 | I14: 23991.59631 | L14: 982.5350564 | N14: =C14-I14 -> 423.3937332
B15: Distribution Revenue at Proposed Rates | C15: 25392.52165 | I15: 24974.13137 | N15: 418.3902887
B16: Other Revenue:
B17: Specific Service Charges | C17: 821.3556444 | I17: 823.7894462 | N17: =C17-I17 -> -2.433801766
B18: Late Payment Charges | C18: 309.9421733 | I18: 310.9407408 | N18: -0.9985674968
B19: Other Distribution Revenue | C19: 174.8133154 | I19: 175.5222265 | N19: -0.7089111058
B20: Other Income and Deductions | C20: 128 | I20: 128 | N20: 0
B22: Total Revenue Offsets | C22: 1434.111133 | I22: 1438.252413 | N22: =C22-I22 -> -4.141280368
B24: Operating Expenses:
B25: OM+A Expenses | C25: 13102.21198 | I25: 13102.21198 | N25: =C25-I25 -> 0
B26: Depreciation/Amortization | C26: 5393.321093 | I26: 5415.321093 | N26: -22
B27: Property taxes | C27: 172.0104499 | I27: 172.0104499 | N27: 0
B28: Capital taxes
B29: Other expenses | C29: 33.21907091 | I29: 33.21907091 | N29: =C29-I29 -> 0
B31: Taxes/PILs
B32: Taxable Income:
B33: Adjustments required to arrive at taxable income | C33: -3152.677617 | I33: -3130.677617 | N33: =C33-I33 -> -22
B34: Utility Income Taxes and Rates:
B35: Income taxes (not grossed up) | C35: 356.3917417 | I35: 326.3600192 | N35: =C35-I35 -> 30.03172251
B36: Income taxes (grossed up) | C36: 470.7884364 | I36: 430.1572092 | N36: 40.63122715
B37: Capital Taxes
B38: Federal tax (%) | C38: 0.15 | I38: 0.15 | N38: =C38-I38 -> 0
B39: Provincial tax (%) | C39: 0.09298960188 | I39: 0.09130059396 | N39: 0.001689007912
B40: Income Tax Credits | C40: -30 | I40: -30 | N40: 0
B42: Capitalization/Cost of Capital
B43: Capital Structure:
B44: Long-term debt Capitalization Ratio (%) | C44: 0.56 | I44: 0.56 | N44: =C44-I44 -> 0
B45: Short-term debt Capitalization Ratio (%) | C45: 0.04 | I45: 0.04 | N45: 0
B46: Common Equity Capitalization Ratio (%) | C46: 0.4 | I46: 0.4 | N46: 0
B47: Prefered Shares Capitalization Ratio (%) | C47: 0 | I47: 0 | N47: 0
C48: 1 | I48: 1 | N48: 1
B50: Cost of Capital
B51: Long-term debt Cost Rate (%) | C51: 0.03783769116 | I51: 0.03483949259 | N51: =C51-I51 -> 0.002998198575
B52: Short-term debt Cost Rate (%) | C52: 0.0229 | I52: 0.0176 | N52: 0.0053
B53: Common Equity Cost Rate (%) | C53: 0.09 | I53: 0.0878 | N53: 0.0022
B54: Prefered Shares Cost Rate (%) | C54: 0 | I54: 0
